Workbook

Sheet الرئيسية
N18: Best Regards
N19: Mr.Emad

Sheet فاتورة
B1: Sales Invoice
B2: رقم الفاتورة | D2: =MAX('ملخص مبيعات'!$A:$A)+1 -> 29 | T2: wesam
B3: التاريخ | D3: =TODAY() -> 2020-11-01 | T3: ahmed
B4: اسم العميل
B5: رقم الموبايل
F6: المستخدم:- | G6: wesam
B7: م | C7: اسم الصنف | D7: كود | E7: كميه | F7: السعر | G7: الاجمالى | H7: الشراء | I7: الربح | K7: رقم الفاتورة | L7: التاريخ | M7: اسم العميل | N7: رقم الموبايل | O7: اسم الصنف | P7: كود | Q7: كميه | R7: السعر | S7: الاجمالى
B8: =IF(C8="","",1) ->  | D8: =IFERROR(VLOOKUP(C8,المخزون!A:B,2,0),"") ->  | F8: =IFERROR(VLOOKUP(C8,المخزون!A:F,6,0),0) -> 0 | G8: =PRODUCT(F8,E8) -> 0 | H8: =IFERROR(VLOOKUP(C8,وارد!A:D,4,0),"0") -> 0 | I8: =(F8*E8)-(H8*E8) -> 0 | K8: =$D$2 -> 29 | L8: =$D$3 -> 2020-11-01 | M8: =$D$4 -> 0 | N8: =$D$5 -> 0 | O8: =C8 -> 0 | Q8: 0 | R8: 0 | S8: 0
B9: =IF(C9="","",B8+1) ->  | D9: =IFERROR(VLOOKUP(C9,المخزون!A:B,2,0),"") ->  | F9: =IFERROR(VLOOKUP(C9,المخزون!A:F,6,0),0) -> 0 | G9: 0 | H9: =IFERROR(VLOOKUP(C9,وارد!A:D,4,0),"0") -> 0 | I9: =(F9*E9)-(H9*E9) -> 0 | K9: =$D$2 -> 29 | L9: =$D$3 -> 2020-11-01 | M9: =$D$4 -> 0 | N9: =$D$5 -> 0 | O9: 0 | Q9: 0 | R9: 0 | S9: 0
B10: =IF(C10="","",B9+1) ->  | D10: =IFERROR(VLOOKUP(C10,المخزون!A:B,2,0),"") ->  | F10: =IFERROR(VLOOKUP(C10,المخزون!A:F,6,0),0) -> 0 | G10: 0 | H10: =IFERROR(VLOOKUP(C10,وارد!A:D,4,0),"0") -> 0 | I10: 0 | K10: 29 | L10: 2020-11-01 | M10: 0 | N10: 0 | O10: 0 | Q10: 0 | R10: 0 | S10: 0
D11: =IFERROR(VLOOKUP(C11,المخزون!A:B,2,0),"") ->  | F11: =IFERROR(VLOOKUP(C11,المخزون!A:F,6,0),0) -> 0 | G11: 0 | H11: =IFERROR(VLOOKUP(C11,وارد!A:D,4,0),"0") -> 0 | I11: 0 | K11: 29 | L11: 2020-11-01 | M11: 0 | N11: 0 | O11: 0 | Q11: 0 | R11: 0 | S11: 0
D12: =IFERROR(VLOOKUP(C12,المخزون!A:B,2,0),"") ->  | F12: =IFERROR(VLOOKUP(C12,المخزون!A:F,6,0),0) -> 0 | G12: 0 | H12: =IFERROR(VLOOKUP(C12,وارد!A:D,4,0),"0") -> 0 | I12: 0 | K12: 29 | L12: 2020-11-01 | M12: 0 | N12: 0 | O12: 0 | Q12: 0 | R12: 0 | S12: 0
B13: خصم | I13: =SUM(I8:I12) -> 0 | K13: 29 | L13: 2020-11-01 | M13: 0 | N13: 0 | O13: =B13 -> خصم | P13: =D13 -> 0 | Q13: 0 | R13: 0 | S13: 0
B14: إجمالى الفاتورة | G14: =SUM(G8:G12)-G13 -> 0 | K14: 29 | L14: 2020-11-01 | M14: 0 | N14: 0 | O14: =B14 -> إجمالى الفاتورة | P14: 0 | Q14: 0 | R14: 0 | S14: 0
B15: الربح | G15: =I13-G13 -> 0 | K15: 29 | L15: 2020-11-01 | M15: 0 | N15: 0 | O15: =B15 -> الربح | P15: =D15 -> 0 | Q15: =E15 -> 0 | R15: =F15 -> 0 | S15: =G15 -> 0
B17: =[1]!tafket(G14,"جنيه","قرش") -> صفر
F19: =NOW() -> 44136.65365

Sheet المخزون
I2: =SUM(I4:I1048576)-'ملخص مبيعات'!M3 -> 4410 | J2: الربح بع الخصم
A3: اسم الصنف | B3: كود الصنف | C3: وارد | D3: سعر الوارد | E3: منصرف | F3: سعر البيع | G3: رصيد أخر | H3: قيمة رصيد اخر تكلفة | I3: الربح قبل الخصم | M3: =SUMIF(A:A,A4,G:G)>=0 -> TRUE
A4: 1 | B4: 1 | C4: =SUMIF(وارد!A:A,المخزون!A4,وارد!C:C) -> 10 | D4: =IFERROR(VLOOKUP(A4,وارد!A:D,4,0),"0") -> 100 | E4: =SUMIF('ملخص مبيعات'!E:E,المخزون!A4,'ملخص مبيعات'!G:G) -> 5 | F4: =IFERROR(VLOOKUP(A4,وارد!A:F,6,0),"0") -> 150 | G4: =C4-E4 -> 5 | H4: =G4*D4 -> 500 | I4: =(E4*F4)-(E4*D4) -> 250
A5: 2 | B5: 2 | C5: =SUMIF(وارد!A:A,المخزون!A5,وارد!C:C) -> 11 | D5: =IFERROR(VLOOKUP(A5,وارد!A:D,4,0),"0") -> 75 | E5: =SUMIF('ملخص مبيعات'!E:E,المخزون!A5,'ملخص مبيعات'!G:G) -> 10 | F5: =IFERROR(VLOOKUP(A5,وارد!A:F,6,0),"0") -> 130 | G5: =C5-E5 -> 1 | H5: =G5*D5 -> 75 | I5: =(E5*F5)-(E5*D5) -> 550
A6: 3 | B6: 3 | C6: =SUMIF(وارد!A:A,المخزون!A6,وارد!C:C) -> 10 | D6: =IFERROR(VLOOKUP(A6,وارد!A:D,4,0),"0") -> 85 | E6: =SUMIF('ملخص مبيعات'!E:E,المخزون!A6,'ملخص مبيعات'!G:G) -> 8 | F6: =IFERROR(VLOOKUP(A6,وارد!A:F,6,0),"0") -> 130 | G6: 2 | H6: 170 | I6: 360
A7: 4 | B7: 4 | C7: =SUMIF(وارد!A:A,المخزون!A7,وارد!C:C) -> 10 | D7: =IFERROR(VLOOKUP(A7,وارد!A:D,4,0),"0") -> 100 | E7: =SUMIF('ملخص مبيعات'!E:E,المخزون!A7,'ملخص مبيعات'!G:G) -> 9 | F7: =IFERROR(VLOOKUP(A7,وارد!A:F,6,0),"0") -> 150 | G7: 1 | H7: 100 | I7: 450
A8: 5 | B8: 5 | C8: =SUMIF(وارد!A:A,المخزون!A8,وارد!C:C) -> 9 | D8: =IFERROR(VLOOKUP(A8,وارد!A:D,4,0),"0") -> 100 | E8: =SUMIF('ملخص مبيعات'!E:E,المخزون!A8,'ملخص مبيعات'!G:G) -> 9 | F8: =IFERROR(VLOOKUP(A8,وارد!A:F,6,0),"0") -> 150 | G8: 0 | H8: 0 | I8: 450
A9: 6 | B9: 6 | C9: =SUMIF(وارد!A:A,المخزون!A9,وارد!C:C) -> 12 | D9: =IFERROR(VLOOKUP(A9,وارد!A:D,4,0),"0") -> 125 | E9: =SUMIF('ملخص مبيعات'!E:E,المخزون!A9,'ملخص مبيعات'!G:G) -> 11 | F9: =IFERROR(VLOOKUP(A9,وارد!A:F,6,0),"0") -> 175 | G9: 1 | H9: 125 | I9: 550
A10: 7 | B10: 7 | C10: =SUMIF(وارد!A:A,المخزون!A10,وارد!C:C) -> 10 | D10: =IFERROR(VLOOKUP(A10,وارد!A:D,4,0),"0") -> 150 | E10: =SUMIF('ملخص مبيعات'!E:E,المخزون!A10,'ملخص مبيعات'!G:G) -> 7 | F10: =IFERROR(VLOOKUP(A10,وارد!A:F,6,0),"0") -> 200 | G10: 3 | H10: 450 | I10: 350
A11: 8 | B11: 8 | C11: =SUMIF(وارد!A:A,المخزون!A11,وارد!C:C) -> 10 | D11: =IFERROR(VLOOKUP(A11,وارد!A:D,4,0),"0") -> 130 | E11: =SUMIF('ملخص مبيعات'!E:E,المخزون!A11,'ملخص مبيعات'!G:G) -> 7 | F11: =IFERROR(VLOOKUP(A11,وارد!A:F,6,0),"0") -> 200 | G11: 3 | H11: 390 | I11: 490
A12: 9 | B12: 9 | C12: =SUMIF(وارد!A:A,المخزون!A12,وارد!C:C) -> 10 | D12: =IFERROR(VLOOKUP(A12,وارد!A:D,4,0),"0") -> 85 | E12: =SUMIF('ملخص مبيعات'!E:E,المخزون!A12,'ملخص مبيعات'!G:G) -> 6 | F12: =IFERROR(VLOOKUP(A12,وارد!A:F,6,0),"0") -> 130 | G12: 4 | H12: 340 | I12: 270
A13: 10 | B13: 10 | C13: =SUMIF(وارد!A:A,المخزون!A13,وارد!C:C) -> 10 | D13: =IFERROR(VLOOKUP(A13,وارد!A:D,4,0),"0") -> 85 | E13: =SUMIF('ملخص مبيعات'!E:E,المخزون!A13,'ملخص مبيعات'!G:G) -> 3 | F13: =IFERROR(VLOOKUP(A13,وارد!A:F,6,0),"0") -> 130 | G13: 7 | H13: 595 | I13: 135
A14: 11 | B14: 11 | C14: =SUMIF(وارد!A:A,المخزون!A14,وارد!C:C) -> 5 | D14: =IFERROR(VLOOKUP(A14,وارد!A:D,4,0),"0") -> 125 | E14: =SUMIF('ملخص مبيعات'!E:E,المخزون!A14,'ملخص مبيعات'!G:G) -> 1 | F14: =IFERROR(VLOOKUP(A14,وارد!A:F,6,0),"0") -> 200 | G14: 4 | H14: 500 | I14: 75
A15: 12 | B15: 12 | C15: =SUMIF(وارد!A:A,المخزون!A15,وارد!C:C) -> 5 | D15: =IFERROR(VLOOKUP(A15,وارد!A:D,4,0),"0") -> 100 | E15: =SUMIF('ملخص مبيعات'!E:E,المخزون!A15,'ملخص مبيعات'!G:G) -> 2 | F15: =IFERROR(VLOOKUP(A15,وارد!A:F,6,0),"0") -> 175 | G15: 3 | H15: 300 | I15: 150
A16: 13 | B16: 13 | C16: =SUMIF(وارد!A:A,المخزون!A16,وارد!C:C) -> 5 | D16: =IFERROR(VLOOKUP(A16,وارد!A:D,4,0),"0") -> 75 | E16: =SUMIF('ملخص مبيعات'!E:E,المخزون!A16,'ملخص مبيعات'!G:G) -> 2 | F16: =IFERROR(VLOOKUP(A16,وارد!A:F,6,0),"0") -> 150 | G16: 3 | H16: 225 | I16: 150
A17: 14 | B17: 14 | C17: =SUMIF(وارد!A:A,المخزون!A17,وارد!C:C) -> 5 | D17: =IFERROR(VLOOKUP(A17,وارد!A:D,4,0),"0") -> 130 | E17: =SUMIF('ملخص مبيعات'!E:E,المخزون!A17,'ملخص مبيعات'!G:G) -> 1 | F17: =IFERROR(VLOOKUP(A17,وارد!A:F,6,0),"0") -> 220 | G17: 4 | H17: 520 | I17: 90
A18: 15 | B18: 15 | C18: =SUMIF(وارد!A:A,المخزون!A18,وارد!C:C) -> 5 | D18: =IFERROR(VLOOKUP(A18,وارد!A:D,4,0),"0") -> 140 | E18: =SUMIF('ملخص مبيعات'!E:E,المخزون!A18,'ملخص مبيعات'!G:G) -> 2 | F18: =IFERROR(VLOOKUP(A18,وارد!A:F,6,0),"0") -> 220 | G18: 3 | H18: 420 | I18: 160
A19: 16 | B19: 16 | C19: =SUMIF(وارد!A:A,المخزون!A19,وارد!C:C) -> 5 | D19: =IFERROR(VLOOKUP(A19,وارد!A:D,4,0),"0") -> 100 | E19: =SUMIF('ملخص مبيعات'!E:E,المخزون!A19,'ملخص مبيعات'!G:G) -> 2 | F19: =IFERROR(VLOOKUP(A19,وارد!A:F,6,0),"0") -> 170 | G19: 3 | H19: 300 | I19: 140
A20: 17 | B20: 17 | C20: =SUMIF(وارد!A:A,المخزون!A20,وارد!C:C) -> 5 | D20: =IFERROR(VLOOKUP(A20,وارد!A:D,4,0),"0") -> 150 | E20: =SUMIF('ملخص مبيعات'!E:E,المخزون!A20,'ملخص مبيعات'!G:G) -> 2 | F20: =IFERROR(VLOOKUP(A20,وارد!A:F,6,0),"0") -> 210 | G20: 3 | H20: 450 | I20: 120
A21: 18 | B21: 18 | C21: =SUMIF(وارد!A:A,المخزون!A21,وارد!C:C) -> 5 | D21: =IFERROR(VLOOKUP(A21,وارد!A:D,4,0),"0") -> 150 | E21: =SUMIF('ملخص مبيعات'!E:E,المخزون!A21,'ملخص مبيعات'!G:G) -> 2 | F21: =IFERROR(VLOOKUP(A21,وارد!A:F,6,0),"0") -> 220 | G21: 3 | H21: 450 | I21: 140
A22: 19 | B22: 19 | C22: =SUMIF(وارد!A:A,المخزون!A22,وارد!C:C) -> 5 | D22: =IFERROR(VLOOKUP(A22,وارد!A:D,4,0),"0") -> 150 | F22: =IFERROR(VLOOKUP(A22,وارد!A:F,6,0),"0") -> 230 | G22: 5 | H22: 750 | I22: 0
A23: 20 | B23: 20 | C23: =SUMIF(وارد!A:A,المخزون!A23,وارد!C:C) -> 0 | D23: =IFERROR(VLOOKUP(A23,وارد!A:D,4,0),"0") -> 0 | F23: =IFERROR(VLOOKUP(A23,وارد!A:F,6,0),"0") -> 0 | G23: 0 | H23: 0 | I23: 0
A24: 21 | B24: 21 | C24: =SUMIF(وارد!A:A,المخزون!A24,وارد!C:C) -> 0 | D24: =IFERROR(VLOOKUP(A24,وارد!A:D,4,0),"0") -> 0 | F24: =IFERROR(VLOOKUP(A24,وارد!A:F,6,0),"0") -> 0 | G24: 0 | H24: 0 | I24: 0
A25: 22 | B25: 22 | C25: =SUMIF(وارد!A:A,المخزون!A25,وارد!C:C) -> 0 | D25: =IFERROR(VLOOKUP(A25,وارد!A:D,4,0),"0") -> 0 | F25: =IFERROR(VLOOKUP(A25,وارد!A:F,6,0),"0") -> 0 | G25: 0 | H25: 0 | I25: 0
A26: 23 | B26: 23 | C26: =SUMIF(وارد!A:A,المخزون!A26,وارد!C:C) -> 0 | D26: =IFERROR(VLOOKUP(A26,وارد!A:D,4,0),"0") -> 0 | F26: =IFERROR(VLOOKUP(A26,وارد!A:F,6,0),"0") -> 0 | G26: 0 | H26: 0 | I26: 0
A27: 24 | B27: 24 | C27: =SUMIF(وارد!A:A,المخزون!A27,وارد!C:C) -> 0 | D27: =IFERROR(VLOOKUP(A27,وارد!A:D,4,0),"0") -> 0 | F27: =IFERROR(VLOOKUP(A27,وارد!A:F,6,0),"0") -> 0 | G27: 0 | H27: 0 | I27: 0
A28: 25 | B28: 25 | C28: =SUMIF(وارد!A:A,المخزون!A28,وارد!C:C) -> 0 | D28: =IFERROR(VLOOKUP(A28,وارد!A:D,4,0),"0") -> 0 | F28: =IFERROR(VLOOKUP(A28,وارد!A:F,6,0),"0") -> 0 | G28: 0 | H28: 0 | I28: 0
A29: 26 | B29: 26 | C29: =SUMIF(وارد!A:A,المخزون!A29,وارد!C:C) -> 0 | D29: =IFERROR(VLOOKUP(A29,وارد!A:D,4,0),"0") -> 0 | F29: =IFERROR(VLOOKUP(A29,وارد!A:F,6,0),"0") -> 0 | G29: 0 | H29: 0 | I29: 0
A30: 27 | B30: 27 | C30: =SUMIF(وارد!A:A,المخزون!A30,وارد!C:C) -> 0 | D30: =IFERROR(VLOOKUP(A30,وارد!A:D,4,0),"0") -> 0 | F30: =IFERROR(VLOOKUP(A30,وارد!A:F,6,0),"0") -> 0 | G30: 0 | H30: 0 | I30: 0
A31: 28 | B31: 28 | C31: =SUMIF(وارد!A:A,المخزون!A31,وارد!C:C) -> 0 | D31: =IFERROR(VLOOKUP(A31,وارد!A:D,4,0),"0") -> 0 | F31: =IFERROR(VLOOKUP(A31,وارد!A:F,6,0),"0") -> 0 | G31: 0 | H31: 0 | I31: 0
A32: 29 | B32: 29 | C32: =SUMIF(وارد!A:A,المخزون!A32,وارد!C:C) -> 0 | D32: =IFERROR(VLOOKUP(A32,وارد!A:D,4,0),"0") -> 0 | F32: =IFERROR(VLOOKUP(A32,وارد!A:F,6,0),"0") -> 0 | G32: 0 | H32: 0 | I32: 0
A33: 30 | B33: 30 | C33: =SUMIF(وارد!A:A,المخزون!A33,وارد!C:C) -> 0 | D33: =IFERROR(VLOOKUP(A33,وارد!A:D,4,0),"0") -> 0 | F33: =IFERROR(VLOOKUP(A33,وارد!A:F,6,0),"0") -> 0 | G33: 0 | H33: 0 | I33: 0
A34: 31 | B34: 31 | C34: =SUMIF(وارد!A:A,المخزون!A34,وارد!C:C) -> 0 | D34: =IFERROR(VLOOKUP(A34,وارد!A:D,4,0),"0") -> 0 | F34: =IFERROR(VLOOKUP(A34,وارد!A:F,6,0),"0") -> 0 | G34: 0 | H34: 0 | I34: 0
A35: 32 | B35: 32 | C35: =SUMIF(وارد!A:A,المخزون!A35,وارد!C:C) -> 0 | D35: =IFERROR(VLOOKUP(A35,وارد!A:D,4,0),"0") -> 0 | F35: =IFERROR(VLOOKUP(A35,وارد!A:F,6,0),"0") -> 0 | G35: 0 | H35: 0 | I35: 0
A36: 33 | B36: 33 | C36: =SUMIF(وارد!A:A,المخزون!A36,وارد!C:C) -> 0 | D36: =IFERROR(VLOOKUP(A36,وارد!A:D,4,0),"0") -> 0 | F36: =IFERROR(VLOOKUP(A36,وارد!A:F,6,0),"0") -> 0 | G36: 0 | H36: 0 | I36: 0
A37: 34 | B37: 34 | C37: =SUMIF(وارد!A:A,المخزون!A37,وارد!C:C) -> 0 | D37: =IFERROR(VLOOKUP(A37,وارد!A:D,4,0),"0") -> 0 | F37: =IFERROR(VLOOKUP(A37,وارد!A:F,6,0),"0") -> 0 | G37: 0 | H37: 0 | I37: 0
A38: 35 | B38: 35 | C38: =SUMIF(وارد!A:A,المخزون!A38,وارد!C:C) -> 0 | D38: =IFERROR(VLOOKUP(A38,وارد!A:D,4,0),"0") -> 0 | F38: =IFERROR(VLOOKUP(A38,وارد!A:F,6,0),"0") -> 0 | G38: 0 | H38: 0 | I38: 0
A39: 36 | B39: 36 | C39: =SUMIF(وارد!A:A,المخزون!A39,وارد!C:C) -> 0 | D39: =IFERROR(VLOOKUP(A39,وارد!A:D,4,0),"0") -> 0 | F39: =IFERROR(VLOOKUP(A39,وارد!A:F,6,0),"0") -> 0 | G39: 0 | H39: 0 | I39: 0
A40: 37 | B40: 37 | C40: =SUMIF(وارد!A:A,المخزون!A40,وارد!C:C) -> 0 | D40: =IFERROR(VLOOKUP(A40,وارد!A:D,4,0),"0") -> 0 | F40: =IFERROR(VLOOKUP(A40,وارد!A:F,6,0),"0") -> 0 | G40: 0 | H40: 0 | I40: 0
A41: 38 | B41: 38 | C41: =SUMIF(وارد!A:A,المخزون!A41,وارد!C:C) -> 0 | D41: =IFERROR(VLOOKUP(A41,وارد!A:D,4,0),"0") -> 0 | F41: =IFERROR(VLOOKUP(A41,وارد!A:F,6,0),"0") -> 0 | G41: 0 | H41: 0 | I41: 0
A42: 39 | B42: 39 | C42: =SUMIF(وارد!A:A,المخزون!A42,وارد!C:C) -> 0 | D42: =IFERROR(VLOOKUP(A42,وارد!A:D,4,0),"0") -> 0 | F42: =IFERROR(VLOOKUP(A42,وارد!A:F,6,0),"0") -> 0 | G42: 0 | H42: 0 | I42: 0
A43: 40 | B43: 40 | C43: =SUMIF(وارد!A:A,المخزون!A43,وارد!C:C) -> 0 | D43: =IFERROR(VLOOKUP(A43,وارد!A:D,4,0),"0") -> 0 | F43: =IFERROR(VLOOKUP(A43,وارد!A:F,6,0),"0") -> 0 | G43: 0 | H43: 0 | I43: 0
A44: 41 | B44: 41 | C44: =SUMIF(وارد!A:A,المخزون!A44,وارد!C:C) -> 0 | D44: =IFERROR(VLOOKUP(A44,وارد!A:D,4,0),"0") -> 0 | F44: =IFERROR(VLOOKUP(A44,وارد!A:F,6,0),"0") -> 0 | G44: 0 | H44: 0 | I44: 0
A45: 42 | B45: 42 | C45: =SUMIF(وارد!A:A,المخزون!A45,وارد!C:C) -> 0 | D45: =IFERROR(VLOOKUP(A45,وارد!A:D,4,0),"0") -> 0 | F45: =IFERROR(VLOOKUP(A45,وارد!A:F,6,0),"0") -> 0 | G45: 0 | H45: 0 | I45: 0
A46: 43 | B46: 43 | C46: =SUMIF(وارد!A:A,المخزون!A46,وارد!C:C) -> 0 | D46: =IFERROR(VLOOKUP(A46,وارد!A:D,4,0),"0") -> 0 | F46: =IFERROR(VLOOKUP(A46,وارد!A:F,6,0),"0") -> 0 | G46: 0 | H46: 0 | I46: 0
A47: 44 | B47: 44 | C47: =SUMIF(وارد!A:A,المخزون!A47,وارد!C:C) -> 0 | D47: =IFERROR(VLOOKUP(A47,وارد!A:D,4,0),"0") -> 0 | F47: =IFERROR(VLOOKUP(A47,وارد!A:F,6,0),"0") -> 0 | G47: 0 | H47: 0 | I47: 0
A48: 45 | B48: 45 | C48: =SUMIF(وارد!A:A,المخزون!A48,وارد!C:C) -> 0 | D48: =IFERROR(VLOOKUP(A48,وارد!A:D,4,0),"0") -> 0 | F48: =IFERROR(VLOOKUP(A48,وارد!A:F,6,0),"0") -> 0 | G48: 0 | H48: 0 | I48: 0
A49: 46 | B49: 46 | C49: =SUMIF(وارد!A:A,المخزون!A49,وارد!C:C) -> 0 | D49: =IFERROR(VLOOKUP(A49,وارد!A:D,4,0),"0") -> 0 | F49: =IFERROR(VLOOKUP(A49,وارد!A:F,6,0),"0") -> 0 | G49: 0 | H49: 0 | I49: 0
A50: 47 | B50: 47 | C50: =SUMIF(وارد!A:A,المخزون!A50,وارد!C:C) -> 0 | D50: =IFERROR(VLOOKUP(A50,وارد!A:D,4,0),"0") -> 0 | F50: =IFERROR(VLOOKUP(A50,وارد!A:F,6,0),"0") -> 0 | G50: 0 | H50: 0 | I50: 0
A51: 48 | B51: 48 | C51: =SUMIF(وارد!A:A,المخزون!A51,وارد!C:C) -> 0 | D51: =IFERROR(VLOOKUP(A51,وارد!A:D,4,0),"0") -> 0 | F51: =IFERROR(VLOOKUP(A51,وارد!A:F,6,0),"0") -> 0 | G51: 0 | H51: 0 | I51: 0
A52: 49 | B52: 49 | C52: =SUMIF(وارد!A:A,المخزون!A52,وارد!C:C) -> 0 | D52: =IFERROR(VLOOKUP(A52,وارد!A:D,4,0),"0") -> 0 | F52: =IFERROR(VLOOKUP(A52,وارد!A:F,6,0),"0") -> 0 | G52: 0 | H52: 0 | I52: 0
A53: 50 | B53: 50 | C53: =SUMIF(وارد!A:A,المخزون!A53,وارد!C:C) -> 0 | D53: =IFERROR(VLOOKUP(A53,وارد!A:D,4,0),"0") -> 0 | F53: =IFERROR(VLOOKUP(A53,وارد!A:F,6,0),"0") -> 0 | G53: 0 | H53: 0 | I53: 0
A54: 51 | B54: 51 | C54: =SUMIF(وارد!A:A,المخزون!A54,وارد!C:C) -> 0 | D54: =IFERROR(VLOOKUP(A54,وارد!A:D,4,0),"0") -> 0 | F54: =IFERROR(VLOOKUP(A54,وارد!A:F,6,0),"0") -> 0 | G54: 0 | H54: 0 | I54: 0
A55: 52 | B55: 52 | C55: =SUMIF(وارد!A:A,المخزون!A55,وارد!C:C) -> 0 | D55: =IFERROR(VLOOKUP(A55,وارد!A:D,4,0),"0") -> 0 | F55: =IFERROR(VLOOKUP(A55,وارد!A:F,6,0),"0") -> 0 | G55: 0 | H55: 0 | I55: 0
A56: 53 | B56: 53 | C56: =SUMIF(وارد!A:A,المخزون!A56,وارد!C:C) -> 0 | D56: =IFERROR(VLOOKUP(A56,وارد!A:D,4,0),"0") -> 0 | F56: =IFERROR(VLOOKUP(A56,وارد!A:F,6,0),"0") -> 0 | G56: 0 | H56: 0 | I56: 0
A57: 54 | B57: 54 | C57: =SUMIF(وارد!A:A,المخزون!A57,وارد!C:C) -> 0 | D57: =IFERROR(VLOOKUP(A57,وارد!A:D,4,0),"0") -> 0 | F57: =IFERROR(VLOOKUP(A57,وارد!A:F,6,0),"0") -> 0 | G57: 0 | H57: 0 | I57: 0
A58: 55 | B58: 55 | C58: =SUMIF(وارد!A:A,المخزون!A58,وارد!C:C) -> 0 | D58: =IFERROR(VLOOKUP(A58,وارد!A:D,4,0),"0") -> 0 | F58: =IFERROR(VLOOKUP(A58,وارد!A:F,6,0),"0") -> 0 | G58: 0 | H58: 0 | I58: 0
A59: 56 | B59: 56 | C59: =SUMIF(وارد!A:A,المخزون!A59,وارد!C:C) -> 0 | D59: =IFERROR(VLOOKUP(A59,وارد!A:D,4,0),"0") -> 0 | F59: =IFERROR(VLOOKUP(A59,وارد!A:F,6,0),"0") -> 0 | G59: 0 | H59: 0 | I59: 0
A60: 57 | B60: 57 | C60: =SUMIF(وارد!A:A,المخزون!A60,وارد!C:C) -> 0 | D60: =IFERROR(VLOOKUP(A60,وارد!A:D,4,0),"0") -> 0 | F60: =IFERROR(VLOOKUP(A60,وارد!A:F,6,0),"0") -> 0 | G60: 0 | H60: 0 | I60: 0
A61: 58 | B61: 58 | C61: =SUMIF(وارد!A:A,المخزون!A61,وارد!C:C) -> 0 | D61: =IFERROR(VLOOKUP(A61,وارد!A:D,4,0),"0") -> 0 | F61: =IFERROR(VLOOKUP(A61,وارد!A:F,6,0),"0") -> 0 | G61: 0 | H61: 0 | I61: 0
A62: 59 | B62: 59 | C62: =SUMIF(وارد!A:A,المخزون!A62,وارد!C:C) -> 0 | D62: =IFERROR(VLOOKUP(A62,وارد!A:D,4,0),"0") -> 0 | F62: =IFERROR(VLOOKUP(A62,وارد!A:F,6,0),"0") -> 0 | G62: 0 | H62: 0 | I62: 0
A63: 60 | B63: 60 | C63: =SUMIF(وارد!A:A,المخزون!A63,وارد!C:C) -> 0 | D63: =IFERROR(VLOOKUP(A63,وارد!A:D,4,0),"0") -> 0 | F63: =IFERROR(VLOOKUP(A63,وارد!A:F,6,0),"0") -> 0 | G63: 0 | H63: 0 | I63: 0
A64: 61 | B64: 61 | C64: =SUMIF(وارد!A:A,المخزون!A64,وارد!C:C) -> 0 | D64: =IFERROR(VLOOKUP(A64,وارد!A:D,4,0),"0") -> 0 | F64: =IFERROR(VLOOKUP(A64,وارد!A:F,6,0),"0") -> 0 | G64: 0 | H64: 0 | I64: 0
A65: 62 | B65: 62 | C65: =SUMIF(وارد!A:A,المخزون!A65,وارد!C:C) -> 0 | D65: =IFERROR(VLOOKUP(A65,وارد!A:D,4,0),"0") -> 0 | F65: =IFERROR(VLOOKUP(A65,وارد!A:F,6,0),"0") -> 0 | G65: 0 | H65: 0 | I65: 0
A66: 63 | B66: 63 | C66: =SUMIF(وارد!A:A,المخزون!A66,وارد!C:C) -> 0 | D66: =IFERROR(VLOOKUP(A66,وارد!A:D,4,0),"0") -> 0 | F66: =IFERROR(VLOOKUP(A66,وارد!A:F,6,0),"0") -> 0 | G66: 0 | H66: 0 | I66: 0
A67: 64 | B67: 64 | C67: =SUMIF(وارد!A:A,المخزون!A67,وارد!C:C) -> 0 | D67: =IFERROR(VLOOKUP(A67,وارد!A:D,4,0),"0") -> 0 | F67: =IFERROR(VLOOKUP(A67,وارد!A:F,6,0),"0") -> 0 | G67: 0 | H67: 0 | I67: 0
A68: 65 | B68: 65 | C68: =SUMIF(وارد!A:A,المخزون!A68,وارد!C:C) -> 0 | D68: =IFERROR(VLOOKUP(A68,وارد!A:D,4,0),"0") -> 0 | F68: =IFERROR(VLOOKUP(A68,وارد!A:F,6,0),"0") -> 0 | G68: 0 | H68: 0 | I68: 0
A69: 66 | B69: 66 | C69: =SUMIF(وارد!A:A,المخزون!A69,وارد!C:C) -> 0 | D69: =IFERROR(VLOOKUP(A69,وارد!A:D,4,0),"0") -> 0 | F69: =IFERROR(VLOOKUP(A69,وارد!A:F,6,0),"0") -> 0 | G69: =C69-E69 -> 0 | H69: =G69*D69 -> 0 | I69: =(E69*F69)-(E69*D69) -> 0
A70: 67 | B70: 67 | C70: =SUMIF(وارد!A:A,المخزون!A70,وارد!C:C) -> 0 | D70: =IFERROR(VLOOKUP(A70,وارد!A:D,4,0),"0") -> 0 | F70: =IFERROR(VLOOKUP(A70,وارد!A:F,6,0),"0") -> 0 | G70: 0 | H70: 0 | I70: 0
A71: 68 | B71: 68 | C71: =SUMIF(وارد!A:A,المخزون!A71,وارد!C:C) -> 0 | D71: =IFERROR(VLOOKUP(A71,وارد!A:D,4,0),"0") -> 0 | F71: =IFERROR(VLOOKUP(A71,وارد!A:F,6,0),"0") -> 0 | G71: 0 | H71: 0 | I71: 0
A72: 69 | B72: 69 | C72: =SUMIF(وارد!A:A,المخزون!A72,وارد!C:C) -> 0 | D72: =IFERROR(VLOOKUP(A72,وارد!A:D,4,0),"0") -> 0 | F72: =IFERROR(VLOOKUP(A72,وارد!A:F,6,0),"0") -> 0 | G72: 0 | H72: 0 | I72: 0
A73: 70 | B73: 70 | C73: =SUMIF(وارد!A:A,المخزون!A73,وارد!C:C) -> 0 | D73: =IFERROR(VLOOKUP(A73,وارد!A:D,4,0),"0") -> 0 | F73: =IFERROR(VLOOKUP(A73,وارد!A:F,6,0),"0") -> 0 | G73: 0 | H73: 0 | I73: 0
A74: 71 | B74: 71 | C74: =SUMIF(وارد!A:A,المخزون!A74,وارد!C:C) -> 0 | D74: =IFERROR(VLOOKUP(A74,وارد!A:D,4,0),"0") -> 0 | F74: =IFERROR(VLOOKUP(A74,وارد!A:F,6,0),"0") -> 0 | G74: 0 | H74: 0 | I74: 0
A75: 72 | B75: 72 | C75: =SUMIF(وارد!A:A,المخزون!A75,وارد!C:C) -> 0 | D75: =IFERROR(VLOOKUP(A75,وارد!A:D,4,0),"0") -> 0 | F75: =IFERROR(VLOOKUP(A75,وارد!A:F,6,0),"0") -> 0 | G75: 0 | H75: 0 | I75: 0
A76: 73 | B76: 73 | C76: =SUMIF(وارد!A:A,المخزون!A76,وارد!C:C) -> 0 | D76: =IFERROR(VLOOKUP(A76,وارد!A:D,4,0),"0") -> 0 | F76: =IFERROR(VLOOKUP(A76,وارد!A:F,6,0),"0") -> 0 | G76: 0 | H76: 0 | I76: 0
A77: 74 | B77: 74 | C77: =SUMIF(وارد!A:A,المخزون!A77,وارد!C:C) -> 0 | D77: =IFERROR(VLOOKUP(A77,وارد!A:D,4,0),"0") -> 0 | F77: =IFERROR(VLOOKUP(A77,وارد!A:F,6,0),"0") -> 0 | G77: 0 | H77: 0 | I77: 0
A78: 75 | B78: 75 | C78: =SUMIF(وارد!A:A,المخزون!A78,وارد!C:C) -> 0 | D78: =IFERROR(VLOOKUP(A78,وارد!A:D,4,0),"0") -> 0 | F78: =IFERROR(VLOOKUP(A78,وارد!A:F,6,0),"0") -> 0 | G78: 0 | H78: 0 | I78: 0
A79: 76 | B79: 76 | C79: =SUMIF(وارد!A:A,المخزون!A79,وارد!C:C) -> 0 | D79: =IFERROR(VLOOKUP(A79,وارد!A:D,4,0),"0") -> 0 | F79: =IFERROR(VLOOKUP(A79,وارد!A:F,6,0),"0") -> 0 | G79: 0 | H79: 0 | I79: 0
A80: 77 | B80: 77 | C80: =SUMIF(وارد!A:A,المخزون!A80,وارد!C:C) -> 0 | D80: =IFERROR(VLOOKUP(A80,وارد!A:D,4,0),"0") -> 0 | F80: =IFERROR(VLOOKUP(A80,وارد!A:F,6,0),"0") -> 0 | G80: 0 | H80: 0 | I80: 0
A81: 78 | B81: 78 | C81: =SUMIF(وارد!A:A,المخزون!A81,وارد!C:C) -> 0 | D81: =IFERROR(VLOOKUP(A81,وارد!A:D,4,0),"0") -> 0 | F81: =IFERROR(VLOOKUP(A81,وارد!A:F,6,0),"0") -> 0 | G81: 0 | H81: 0 | I81: 0
A82: 79 | B82: 79 | C82: =SUMIF(وارد!A:A,المخزون!A82,وارد!C:C) -> 0 | D82: =IFERROR(VLOOKUP(A82,وارد!A:D,4,0),"0") -> 0 | F82: =IFERROR(VLOOKUP(A82,وارد!A:F,6,0),"0") -> 0 | G82: 0 | H82: 0 | I82: 0
A83: 80 | B83: 80 | C83: =SUMIF(وارد!A:A,المخزون!A83,وارد!C:C) -> 0 | D83: =IFERROR(VLOOKUP(A83,وارد!A:D,4,0),"0") -> 0 | F83: =IFERROR(VLOOKUP(A83,وارد!A:F,6,0),"0") -> 0 | G83: 0 | H83: 0 | I83: 0
A84: 81 | B84: 81 | C84: =SUMIF(وارد!A:A,المخزون!A84,وارد!C:C) -> 0 | D84: =IFERROR(VLOOKUP(A84,وارد!A:D,4,0),"0") -> 0 | F84: =IFERROR(VLOOKUP(A84,وارد!A:F,6,0),"0") -> 0 | G84: 0 | H84: 0 | I84: 0
A85: 82 | B85: 82 | C85: =SUMIF(وارد!A:A,المخزون!A85,وارد!C:C) -> 0 | D85: =IFERROR(VLOOKUP(A85,وارد!A:D,4,0),"0") -> 0 | F85: =IFERROR(VLOOKUP(A85,وارد!A:F,6,0),"0") -> 0 | G85: 0 | H85: 0 | I85: 0
A86: 83 | B86: 83 | C86: =SUMIF(وارد!A:A,المخزون!A86,وارد!C:C) -> 0 | D86: =IFERROR(VLOOKUP(A86,وارد!A:D,4,0),"0") -> 0 | F86: =IFERROR(VLOOKUP(A86,وارد!A:F,6,0),"0") -> 0 | G86: 0 | H86: 0 | I86: 0
A87: 84 | B87: 84 | C87: =SUMIF(وارد!A:A,المخزون!A87,وارد!C:C) -> 0 | D87: =IFERROR(VLOOKUP(A87,وارد!A:D,4,0),"0") -> 0 | F87: =IFERROR(VLOOKUP(A87,وارد!A:F,6,0),"0") -> 0 | G87: 0 | H87: 0 | I87: 0
A88: 85 | B88: 85 | C88: =SUMIF(وارد!A:A,المخزون!A88,وارد!C:C) -> 0 | D88: =IFERROR(VLOOKUP(A88,وارد!A:D,4,0),"0") -> 0 | F88: =IFERROR(VLOOKUP(A88,وارد!A:F,6,0),"0") -> 0 | G88: 0 | H88: 0 | I88: 0
A89: 86 | B89: 86 | C89: =SUMIF(وارد!A:A,المخزون!A89,وارد!C:C) -> 0 | D89: =IFERROR(VLOOKUP(A89,وارد!A:D,4,0),"0") -> 0 | F89: =IFERROR(VLOOKUP(A89,وارد!A:F,6,0),"0") -> 0 | G89: 0 | H89: 0 | I89: 0
A90: 87 | B90: 87 | C90: =SUMIF(وارد!A:A,المخزون!A90,وارد!C:C) -> 0 | D90: =IFERROR(VLOOKUP(A90,وارد!A:D,4,0),"0") -> 0 | F90: =IFERROR(VLOOKUP(A90,وارد!A:F,6,0),"0") -> 0 | G90: 0 | H90: 0 | I90: 0
A91: 88 | B91: 88 | C91: =SUMIF(وارد!A:A,المخزون!A91,وارد!C:C) -> 0 | D91: =IFERROR(VLOOKUP(A91,وارد!A:D,4,0),"0") -> 0 | F91: =IFERROR(VLOOKUP(A91,وارد!A:F,6,0),"0") -> 0 | G91: 0 | H91: 0 | I91: 0
A92: 89 | B92: 89 | C92: =SUMIF(وارد!A:A,المخزون!A92,وارد!C:C) -> 0 | D92: =IFERROR(VLOOKUP(A92,وارد!A:D,4,0),"0") -> 0 | F92: =IFERROR(VLOOKUP(A92,وارد!A:F,6,0),"0") -> 0 | G92: 0 | H92: 0 | I92: 0
A93: 90 | B93: 90 | C93: =SUMIF(وارد!A:A,المخزون!A93,وارد!C:C) -> 0 | D93: =IFERROR(VLOOKUP(A93,وارد!A:D,4,0),"0") -> 0 | F93: =IFERROR(VLOOKUP(A93,وارد!A:F,6,0),"0") -> 0 | G93: 0 | H93: 0 | I93: 0
A94: 91 | B94: 91 | C94: =SUMIF(وارد!A:A,المخزون!A94,وارد!C:C) -> 0 | D94: =IFERROR(VLOOKUP(A94,وارد!A:D,4,0),"0") -> 0 | F94: =IFERROR(VLOOKUP(A94,وارد!A:F,6,0),"0") -> 0 | G94: 0 | H94: 0 | I94: 0
A95: 92 | B95: 92 | C95: =SUMIF(وارد!A:A,المخزون!A95,وارد!C:C) -> 0 | D95: =IFERROR(VLOOKUP(A95,وارد!A:D,4,0),"0") -> 0 | F95: =IFERROR(VLOOKUP(A95,وارد!A:F,6,0),"0") -> 0 | G95: 0 | H95: 0 | I95: 0
A96: 93 | B96: 93 | C96: =SUMIF(وارد!A:A,المخزون!A96,وارد!C:C) -> 0 | D96: =IFERROR(VLOOKUP(A96,وارد!A:D,4,0),"0") -> 0 | F96: =IFERROR(VLOOKUP(A96,وارد!A:F,6,0),"0") -> 0 | G96: 0 | H96: 0 | I96: 0
A97: 94 | B97: 94 | C97: =SUMIF(وارد!A:A,المخزون!A97,وارد!C:C) -> 0 | D97: =IFERROR(VLOOKUP(A97,وارد!A:D,4,0),"0") -> 0 | F97: =IFERROR(VLOOKUP(A97,وارد!A:F,6,0),"0") -> 0 | G97: 0 | H97: 0 | I97: 0
A98: 95 | B98: 95 | C98: =SUMIF(وارد!A:A,المخزون!A98,وارد!C:C) -> 0 | D98: =IFERROR(VLOOKUP(A98,وارد!A:D,4,0),"0") -> 0 | F98: =IFERROR(VLOOKUP(A98,وارد!A:F,6,0),"0") -> 0 | G98: 0 | H98: 0 | I98: 0
A99: 96 | B99: 96 | C99: =SUMIF(وارد!A:A,المخزون!A99,وارد!C:C) -> 0 | D99: =IFERROR(VLOOKUP(A99,وارد!A:D,4,0),"0") -> 0 | F99: =IFERROR(VLOOKUP(A99,وارد!A:F,6,0),"0") -> 0 | G99: 0 | H99: 0 | I99: 0
A100: 97 | B100: 97 | C100: =SUMIF(وارد!A:A,المخزون!A100,وارد!C:C) -> 0 | D100: =IFERROR(VLOOKUP(A100,وارد!A:D,4,0),"0") -> 0 | F100: =IFERROR(VLOOKUP(A100,وارد!A:F,6,0),"0") -> 0 | G100: 0 | H100: 0 | I100: 0
A101: 98 | B101: 98 | C101: =SUMIF(وارد!A:A,المخزون!A101,وارد!C:C) -> 0 | D101: =IFERROR(VLOOKUP(A101,وارد!A:D,4,0),"0") -> 0 | F101: =IFERROR(VLOOKUP(A101,وارد!A:F,6,0),"0") -> 0 | G101: 0 | H101: 0 | I101: 0
A102: 99 | B102: 99 | C102: =SUMIF(وارد!A:A,المخزون!A102,وارد!C:C) -> 0 | D102: =IFERROR(VLOOKUP(A102,وارد!A:D,4,0),"0") -> 0 | F102: =IFERROR(VLOOKUP(A102,وارد!A:F,6,0),"0") -> 0 | G102: 0 | H102: 0 | I102: 0
A103: 100 | B103: 100 | C103: =SUMIF(وارد!A:A,المخزون!A103,وارد!C:C) -> 0 | D103: =IFERROR(VLOOKUP(A103,وارد!A:D,4,0),"0") -> 0 | F103: =IFERROR(VLOOKUP(A103,وارد!A:F,6,0),"0") -> 0 | G103: 0 | H103: 0 | I103: 0
A104: 101 | B104: 101 | C104: =SUMIF(وارد!A:A,المخزون!A104,وارد!C:C) -> 0 | D104: =IFERROR(VLOOKUP(A104,وارد!A:D,4,0),"0") -> 0 | F104: =IFERROR(VLOOKUP(A104,وارد!A:F,6,0),"0") -> 0 | G104: 0 | H104: 0 | I104: 0
A105: 102 | B105: 102 | C105: =SUMIF(وارد!A:A,المخزون!A105,وارد!C:C) -> 0 | D105: =IFERROR(VLOOKUP(A105,وارد!A:D,4,0),"0") -> 0 | F105: =IFERROR(VLOOKUP(A105,وارد!A:F,6,0),"0") -> 0 | G105: 0 | H105: 0 | I105: 0
A106: 103 | B106: 103 | C106: =SUMIF(وارد!A:A,المخزون!A106,وارد!C:C) -> 0 | D106: =IFERROR(VLOOKUP(A106,وارد!A:D,4,0),"0") -> 0 | F106: =IFERROR(VLOOKUP(A106,وارد!A:F,6,0),"0") -> 0 | G106: 0 | H106: 0 | I106: 0
A107: 104 | B107: 104 | C107: =SUMIF(وارد!A:A,المخزون!A107,وارد!C:C) -> 0 | D107: =IFERROR(VLOOKUP(A107,وارد!A:D,4,0),"0") -> 0 | F107: =IFERROR(VLOOKUP(A107,وارد!A:F,6,0),"0") -> 0 | G107: 0 | H107: 0 | I107: 0
A108: 105 | B108: 105 | C108: =SUMIF(وارد!A:A,المخزون!A108,وارد!C:C) -> 0 | D108: =IFERROR(VLOOKUP(A108,وارد!A:D,4,0),"0") -> 0 | F108: =IFERROR(VLOOKUP(A108,وارد!A:F,6,0),"0") -> 0 | G108: 0 | H108: 0 | I108: 0
A109: 106 | B109: 106 | C109: =SUMIF(وارد!A:A,المخزون!A109,وارد!C:C) -> 0 | D109: =IFERROR(VLOOKUP(A109,وارد!A:D,4,0),"0") -> 0 | F109: =IFERROR(VLOOKUP(A109,وارد!A:F,6,0),"0") -> 0 | G109: 0 | H109: 0 | I109: 0
A110: 107 | B110: 107 | C110: =SUMIF(وارد!A:A,المخزون!A110,وارد!C:C) -> 0 | D110: =IFERROR(VLOOKUP(A110,وارد!A:D,4,0),"0") -> 0 | F110: =IFERROR(VLOOKUP(A110,وارد!A:F,6,0),"0") -> 0 | G110: 0 | H110: 0 | I110: 0
A111: 108 | B111: 108 | C111: =SUMIF(وارد!A:A,المخزون!A111,وارد!C:C) -> 0 | D111: =IFERROR(VLOOKUP(A111,وارد!A:D,4,0),"0") -> 0 | F111: =IFERROR(VLOOKUP(A111,وارد!A:F,6,0),"0") -> 0 | G111: 0 | H111: 0 | I111: 0
A112: 109 | B112: 109 | C112: =SUMIF(وارد!A:A,المخزون!A112,وارد!C:C) -> 0 | D112: =IFERROR(VLOOKUP(A112,وارد!A:D,4,0),"0") -> 0 | F112: =IFERROR(VLOOKUP(A112,وارد!A:F,6,0),"0") -> 0 | G112: 0 | H112: 0 | I112: 0
A113: 110 | B113: 110 | C113: =SUMIF(وارد!A:A,المخزون!A113,وارد!C:C) -> 0 | D113: =IFERROR(VLOOKUP(A113,وارد!A:D,4,0),"0") -> 0 | F113: =IFERROR(VLOOKUP(A113,وارد!A:F,6,0),"0") -> 0 | G113: 0 | H113: 0 | I113: 0
A114: 111 | B114: 111 | C114: =SUMIF(وارد!A:A,المخزون!A114,وارد!C:C) -> 0 | D114: =IFERROR(VLOOKUP(A114,وارد!A:D,4,0),"0") -> 0 | F114: =IFERROR(VLOOKUP(A114,وارد!A:F,6,0),"0") -> 0 | G114: 0 | H114: 0 | I114: 0
A115: 112 | B115: 112 | C115: =SUMIF(وارد!A:A,المخزون!A115,وارد!C:C) -> 0 | D115: =IFERROR(VLOOKUP(A115,وارد!A:D,4,0),"0") -> 0 | F115: =IFERROR(VLOOKUP(A115,وارد!A:F,6,0),"0") -> 0 | G115: 0 | H115: 0 | I115: 0
A116: 113 | B116: 113 | C116: =SUMIF(وارد!A:A,المخزون!A116,وارد!C:C) -> 0 | D116: =IFERROR(VLOOKUP(A116,وارد!A:D,4,0),"0") -> 0 | F116: =IFERROR(VLOOKUP(A116,وارد!A:F,6,0),"0") -> 0 | G116: 0 | H116: 0 | I116: 0
A117: 114 | B117: 114 | C117: =SUMIF(وارد!A:A,المخزون!A117,وارد!C:C) -> 0 | D117: =IFERROR(VLOOKUP(A117,وارد!A:D,4,0),"0") -> 0 | F117: =IFERROR(VLOOKUP(A117,وارد!A:F,6,0),"0") -> 0 | G117: 0 | H117: 0 | I117: 0
A118: 115 | B118: 115 | C118: =SUMIF(وارد!A:A,المخزون!A118,وارد!C:C) -> 0 | D118: =IFERROR(VLOOKUP(A118,وارد!A:D,4,0),"0") -> 0 | F118: =IFERROR(VLOOKUP(A118,وارد!A:F,6,0),"0") -> 0 | G118: 0 | H118: 0 | I118: 0
A119: 116 | B119: 116 | C119: =SUMIF(وارد!A:A,المخزون!A119,وارد!C:C) -> 0 | D119: =IFERROR(VLOOKUP(A119,وارد!A:D,4,0),"0") -> 0 | F119: =IFERROR(VLOOKUP(A119,وارد!A:F,6,0),"0") -> 0 | G119: 0 | H119: 0 | I119: 0
A120: 117 | B120: 117 | C120: =SUMIF(وارد!A:A,المخزون!A120,وارد!C:C) -> 0 | D120: =IFERROR(VLOOKUP(A120,وارد!A:D,4,0),"0") -> 0 | F120: =IFERROR(VLOOKUP(A120,وارد!A:F,6,0),"0") -> 0 | G120: 0 | H120: 0 | I120: 0
A121: 118 | B121: 118 | C121: =SUMIF(وارد!A:A,المخزون!A121,وارد!C:C) -> 0 | D121: =IFERROR(VLOOKUP(A121,وارد!A:D,4,0),"0") -> 0 | F121: =IFERROR(VLOOKUP(A121,وارد!A:F,6,0),"0") -> 0 | G121: 0 | H121: 0 | I121: 0
A122: 119 | B122: 119 | C122: =SUMIF(وارد!A:A,المخزون!A122,وارد!C:C) -> 0 | D122: =IFERROR(VLOOKUP(A122,وارد!A:D,4,0),"0") -> 0 | F122: =IFERROR(VLOOKUP(A122,وارد!A:F,6,0),"0") -> 0 | G122: 0 | H122: 0 | I122: 0
A123: 120 | B123: 120 | C123: =SUMIF(وارد!A:A,المخزون!A123,وارد!C:C) -> 0 | D123: =IFERROR(VLOOKUP(A123,وارد!A:D,4,0),"0") -> 0 | F123: =IFERROR(VLOOKUP(A123,وارد!A:F,6,0),"0") -> 0 | G123: 0 | H123: 0 | I123: 0
A124: 121 | B124: 121 | C124: =SUMIF(وارد!A:A,المخزون!A124,وارد!C:C) -> 0 | D124: =IFERROR(VLOOKUP(A124,وارد!A:D,4,0),"0") -> 0 | F124: =IFERROR(VLOOKUP(A124,وارد!A:F,6,0),"0") -> 0 | G124: 0 | H124: 0 | I124: 0
A125: 122 | B125: 122 | C125: =SUMIF(وارد!A:A,المخزون!A125,وارد!C:C) -> 0 | D125: =IFERROR(VLOOKUP(A125,وارد!A:D,4,0),"0") -> 0 | F125: =IFERROR(VLOOKUP(A125,وارد!A:F,6,0),"0") -> 0 | G125: 0 | H125: 0 | I125: 0
A126: 123 | B126: 123 | C126: =SUMIF(وارد!A:A,المخزون!A126,وارد!C:C) -> 0 | D126: =IFERROR(VLOOKUP(A126,وارد!A:D,4,0),"0") -> 0 | F126: =IFERROR(VLOOKUP(A126,وارد!A:F,6,0),"0") -> 0 | G126: 0 | H126: 0 | I126: 0
A127: 124 | B127: 124 | C127: =SUMIF(وارد!A:A,المخزون!A127,وارد!C:C) -> 0 | D127: =IFERROR(VLOOKUP(A127,وارد!A:D,4,0),"0") -> 0 | F127: =IFERROR(VLOOKUP(A127,وارد!A:F,6,0),"0") -> 0 | G127: 0 | H127: 0 | I127: 0
A128: 125 | B128: 125 | C128: =SUMIF(وارد!A:A,المخزون!A128,وارد!C:C) -> 0 | D128: =IFERROR(VLOOKUP(A128,وارد!A:D,4,0),"0") -> 0 | F128: =IFERROR(VLOOKUP(A128,وارد!A:F,6,0),"0") -> 0 | G128: 0 | H128: 0 | I128: 0
A129: 126 | B129: 126 | C129: =SUMIF(وارد!A:A,المخزون!A129,وارد!C:C) -> 0 | D129: =IFERROR(VLOOKUP(A129,وارد!A:D,4,0),"0") -> 0 | F129: =IFERROR(VLOOKUP(A129,وارد!A:F,6,0),"0") -> 0 | G129: 0 | H129: 0 | I129: 0
A130: 127 | B130: 127 | C130: =SUMIF(وارد!A:A,المخزون!A130,وارد!C:C) -> 0 | D130: =IFERROR(VLOOKUP(A130,وارد!A:D,4,0),"0") -> 0 | F130: =IFERROR(VLOOKUP(A130,وارد!A:F,6,0),"0") -> 0 | G130: 0 | H130: 0 | I130: 0
A131: 128 | B131: 128 | C131: =SUMIF(وارد!A:A,المخزون!A131,وارد!C:C) -> 0 | D131: =IFERROR(VLOOKUP(A131,وارد!A:D,4,0),"0") -> 0 | F131: =IFERROR(VLOOKUP(A131,وارد!A:F,6,0),"0") -> 0 | G131: 0 | H131: 0 | I131: 0
A132: 129 | B132: 129 | C132: =SUMIF(وارد!A:A,المخزون!A132,وارد!C:C) -> 0 | D132: =IFERROR(VLOOKUP(A132,وارد!A:D,4,0),"0") -> 0 | F132: =IFERROR(VLOOKUP(A132,وارد!A:F,6,0),"0") -> 0 | G132: 0 | H132: 0 | I132: 0
A133: 130 | B133: 130 | C133: =SUMIF(وارد!A:A,المخزون!A133,وارد!C:C) -> 0 | D133: =IFERROR(VLOOKUP(A133,وارد!A:D,4,0),"0") -> 0 | F133: =IFERROR(VLOOKUP(A133,وارد!A:F,6,0),"0") -> 0 | G133: =C133-E133 -> 0 | H133: =G133*D133 -> 0 | I133: =(E133*F133)-(E133*D133) -> 0
A134: 131 | B134: 131 | C134: =SUMIF(وارد!A:A,المخزون!A134,وارد!C:C) -> 0 | D134: =IFERROR(VLOOKUP(A134,وارد!A:D,4,0),"0") -> 0 | F134: =IFERROR(VLOOKUP(A134,وارد!A:F,6,0),"0") -> 0 | G134: 0 | H134: 0 | I134: 0
A135: 132 | B135: 132 | C135: =SUMIF(وارد!A:A,المخزون!A135,وارد!C:C) -> 0 | D135: =IFERROR(VLOOKUP(A135,وارد!A:D,4,0),"0") -> 0 | F135: =IFERROR(VLOOKUP(A135,وارد!A:F,6,0),"0") -> 0 | G135: 0 | H135: 0 | I135: 0
A136: 133 | B136: 133 | C136: =SUMIF(وارد!A:A,المخزون!A136,وارد!C:C) -> 0 | D136: =IFERROR(VLOOKUP(A136,وارد!A:D,4,0),"0") -> 0 | F136: =IFERROR(VLOOKUP(A136,وارد!A:F,6,0),"0") -> 0 | G136: 0 | H136: 0 | I136: 0
A137: 134 | B137: 134 | C137: =SUMIF(وارد!A:A,المخزون!A137,وارد!C:C) -> 0 | D137: =IFERROR(VLOOKUP(A137,وارد!A:D,4,0),"0") -> 0 | F137: =IFERROR(VLOOKUP(A137,وارد!A:F,6,0),"0") -> 0 | G137: 0 | H137: 0 | I137: 0
A138: 135 | B138: 135 | C138: =SUMIF(وارد!A:A,المخزون!A138,وارد!C:C) -> 0 | D138: =IFERROR(VLOOKUP(A138,وارد!A:D,4,0),"0") -> 0 | F138: =IFERROR(VLOOKUP(A138,وارد!A:F,6,0),"0") -> 0 | G138: 0 | H138: 0 | I138: 0
A139: 136 | B139: 136 | C139: =SUMIF(وارد!A:A,المخزون!A139,وارد!C:C) -> 0 | D139: =IFERROR(VLOOKUP(A139,وارد!A:D,4,0),"0") -> 0 | F139: =IFERROR(VLOOKUP(A139,وارد!A:F,6,0),"0") -> 0 | G139: 0 | H139: 0 | I139: 0
A140: 137 | B140: 137 | C140: =SUMIF(وارد!A:A,المخزون!A140,وارد!C:C) -> 0 | D140: =IFERROR(VLOOKUP(A140,وارد!A:D,4,0),"0") -> 0 | F140: =IFERROR(VLOOKUP(A140,وارد!A:F,6,0),"0") -> 0 | G140: 0 | H140: 0 | I140: 0
A141: 138 | B141: 138 | C141: =SUMIF(وارد!A:A,المخزون!A141,وارد!C:C) -> 0 | D141: =IFERROR(VLOOKUP(A141,وارد!A:D,4,0),"0") -> 0 | F141: =IFERROR(VLOOKUP(A141,وارد!A:F,6,0),"0") -> 0 | G141: 0 | H141: 0 | I141: 0
A142: 139 | B142: 139 | C142: =SUMIF(وارد!A:A,المخزون!A142,وارد!C:C) -> 0 | D142: =IFERROR(VLOOKUP(A142,وارد!A:D,4,0),"0") -> 0 | F142: =IFERROR(VLOOKUP(A142,وارد!A:F,6,0),"0") -> 0 | G142: 0 | H142: 0 | I142: 0
A143: 140 | B143: 140 | C143: =SUMIF(وارد!A:A,المخزون!A143,وارد!C:C) -> 0 | D143: =IFERROR(VLOOKUP(A143,وارد!A:D,4,0),"0") -> 0 | F143: =IFERROR(VLOOKUP(A143,وارد!A:F,6,0),"0") -> 0 | G143: 0 | H143: 0 | I143: 0
A144: 141 | B144: 141 | C144: =SUMIF(وارد!A:A,المخزون!A144,وارد!C:C) -> 0 | D144: =IFERROR(VLOOKUP(A144,وارد!A:D,4,0),"0") -> 0 | F144: =IFERROR(VLOOKUP(A144,وارد!A:F,6,0),"0") -> 0 | G144: 0 | H144: 0 | I144: 0
A145: 142 | B145: 142 | C145: =SUMIF(وارد!A:A,المخزون!A145,وارد!C:C) -> 0 | D145: =IFERROR(VLOOKUP(A145,وارد!A:D,4,0),"0") -> 0 | F145: =IFERROR(VLOOKUP(A145,وارد!A:F,6,0),"0") -> 0 | G145: 0 | H145: 0 | I145: 0
A146: 143 | B146: 143 | C146: =SUMIF(وارد!A:A,المخزون!A146,وارد!C:C) -> 0 | D146: =IFERROR(VLOOKUP(A146,وارد!A:D,4,0),"0") -> 0 | F146: =IFERROR(VLOOKUP(A146,وارد!A:F,6,0),"0") -> 0 | G146: 0 | H146: 0 | I146: 0
A147: 144 | B147: 144 | C147: =SUMIF(وارد!A:A,المخزون!A147,وارد!C:C) -> 0 | D147: =IFERROR(VLOOKUP(A147,وارد!A:D,4,0),"0") -> 0 | F147: =IFERROR(VLOOKUP(A147,وارد!A:F,6,0),"0") -> 0 | G147: 0 | H147: 0 | I147: 0
A148: 145 | B148: 145 | C148: =SUMIF(وارد!A:A,المخزون!A148,وارد!C:C) -> 0 | D148: =IFERROR(VLOOKUP(A148,وارد!A:D,4,0),"0") -> 0 | F148: =IFERROR(VLOOKUP(A148,وارد!A:F,6,0),"0") -> 0 | G148: 0 | H148: 0 | I148: 0
A149: 146 | B149: 146 | C149: =SUMIF(وارد!A:A,المخزون!A149,وارد!C:C) -> 0 | D149: =IFERROR(VLOOKUP(A149,وارد!A:D,4,0),"0") -> 0 | F149: =IFERROR(VLOOKUP(A149,وارد!A:F,6,0),"0") -> 0 | G149: 0 | H149: 0 | I149: 0
A150: 147 | B150: 147 | C150: =SUMIF(وارد!A:A,المخزون!A150,وارد!C:C) -> 0 | D150: =IFERROR(VLOOKUP(A150,وارد!A:D,4,0),"0") -> 0 | F150: =IFERROR(VLOOKUP(A150,وارد!A:F,6,0),"0") -> 0 | G150: 0 | H150: 0 | I150: 0
A151: 148 | B151: 148 | C151: =SUMIF(وارد!A:A,المخزون!A151,وارد!C:C) -> 0 | D151: =IFERROR(VLOOKUP(A151,وارد!A:D,4,0),"0") -> 0 | F151: =IFERROR(VLOOKUP(A151,وارد!A:F,6,0),"0") -> 0 | G151: 0 | H151: 0 | I151: 0
A152: 149 | B152: 149 | C152: =SUMIF(وارد!A:A,المخزون!A152,وارد!C:C) -> 0 | D152: =IFERROR(VLOOKUP(A152,وارد!A:D,4,0),"0") -> 0 | F152: =IFERROR(VLOOKUP(A152,وارد!A:F,6,0),"0") -> 0 | G152: 0 | H152: 0 | I152: 0
A153: 150 | B153: 150 | C153: =SUMIF(وارد!A:A,المخزون!A153,وارد!C:C) -> 0 | D153: =IFERROR(VLOOKUP(A153,وارد!A:D,4,0),"0") -> 0 | F153: =IFERROR(VLOOKUP(A153,وارد!A:F,6,0),"0") -> 0 | G153: 0 | H153: 0 | I153: 0

Sheet وارد
E3: =SUM(E5:E1048576) -> 16200
A4: اسم الصنف | B4: كود الصنف | C4: كمية | D4: سعر | E4: قيمة | F4: سعر البيع
A5: 1 | B5: 1 | C5: 10 | D5: 100 | E5: =C5*D5 -> 1000 | F5: 150
A6: 2 | B6: 2 | C6: 10 | D6: 75 | E6: =C6*D6 -> 750 | F6: 130
A7: 3 | B7: 3 | C7: 10 | D7: 85 | E7: 850 | F7: 130
A8: 4 | B8: 4 | C8: 10 | D8: 100 | E8: 1000 | F8: 150
A9: 5 | B9: 5 | C9: 10 | D9: 100 | E9: 1000 | F9: 150
A10: 6 | B10: 6 | C10: 10 | D10: 125 | E10: 1250 | F10: 175
A11: 7 | B11: 7 | C11: 10 | D11: 150 | E11: 1500 | F11: 200
A12: 8 | B12: 8 | C12: 10 | D12: 130 | E12: 1300 | F12: 200
A13: 9 | B13: 9 | C13: 10 | D13: 85 | E13: 850 | F13: 130
A14: 10 | B14: 10 | C14: 10 | D14: 85 | E14: 850 | F14: 130
A15: 11 | B15: 11 | C15: 5 | D15: 125 | E15: 625 | F15: 200
A16: 12 | B16: 12 | C16: 5 | D16: 100 | E16: 500 | F16: 175
A17: 13 | B17: 13 | C17: 5 | D17: 75 | E17: 375 | F17: 150
A18: 14 | B18: 14 | C18: 5 | D18: 130 | E18: 650 | F18: 220
A19: 15 | B19: 15 | C19: 5 | D19: 140 | E19: 700 | F19: 220
A20: 16 | B20: 16 | C20: 5 | D20: 100 | E20: 500 | F20: 170
A21: 17 | B21: 17 | C21: 5 | D21: 150 | E21: 750 | F21: 210
A22: 18 | B22: 18 | C22: 5 | D22: 150 | E22: 750 | F22: 220
A23: 19 | B23: 19 | C23: 5 | D23: 150 | E23: 750 | F23: 230
A24: 6 | B24: =A24 -> 6 | C24: 1 | D24: 125 | E24: 125 | F24: 175
A25: 2 | B25: =A25 -> 2 | C25: 1 | D25: 75 | E25: 75 | F25: 130
A26: 6 | B26: 6 | C26: 1 | D26: 150 | E26: 150 | F26: 200
A27: 5 | B27: 5 | C27: -1 | D27: 100 | E27: -100 | F27: 150
B28: 0 | E28: 0
B29: 0 | E29: 0
B30: 0 | E30: 0
B31: 0 | E31: 0
B32: 0 | E32: 0
B33: 0 | E33: 0
B34: 0 | E34: 0
B35: 0 | E35: 0
B36: 0 | E36: 0
B37: 0 | E37: 0
B38: 0 | E38: 0
B39: 0 | E39: 0
B40: 0 | E40: 0
B41: 0 | E41: 0
B42: 0 | E42: 0
B43: 0 | E43: 0
B44: 0 | E44: 0
B45: 0 | E45: 0
B46: 0 | E46: 0
B47: 0 | E47: 0
B48: 0 | E48: 0
B49: 0 | E49: 0
B50: 0 | E50: 0
B51: 0 | E51: 0
B52: 0 | E52: 0
B53: 0 | E53: 0
B54: 0 | E54: 0
B55: 0 | E55: 0
B56: 0 | E56: 0
B57: 0 | E57: 0
B58: 0 | E58: 0
B59: 0 | E59: 0
B60: 0 | E60: 0
B61: 0 | E61: 0
B62: 0 | E62: 0
B63: 0 | E63: 0
B64: 0 | E64: 0
B65: 0 | E65: 0
B66: 0 | E66: 0
B67: 0 | E67: 0
B68: 0 | E68: 0
B69: 0 | E69: 0
B70: 0 | E70: =C70*D70 -> 0
B71: 0 | E71: 0
B72: 0 | E72: 0
B73: 0 | E73: 0
B74: 0 | E74: 0
B75: 0 | E75: 0
B76: 0 | E76: 0
B77: 0 | E77: 0
B78: 0 | E78: 0
B79: 0 | E79: 0
B80: 0 | E80: 0
B81: 0 | E81: 0
B82: 0 | E82: 0
B83: 0 | E83: 0
B84: 0 | E84: 0
B85: 0 | E85: 0
B86: 0 | E86: 0
B87: 0 | E87: 0
B88: 0 | E88: 0
B89: =A89 -> 0 | E89: 0
B90: 0 | E90: 0
B91: 0 | E91: 0
B92: 0 | E92: 0
B93: 0 | E93: 0
B94: 0 | E94: 0
B95: 0 | E95: 0
B96: 0 | E96: 0
B97: 0 | E97: 0
B98: 0 | E98: 0
B99: 0 | E99: 0
B100: 0 | E100: 0
B101: 0 | E101: 0
B102: 0 | E102: 0
B103: 0 | E103: 0
B104: 0 | E104: 0
B105: 0 | E105: 0
B106: 0 | E106: 0
B107: 0 | E107: 0
B108: 0 | E108: 0
B109: 0 | E109: 0
B110: 0 | E110: 0
B111: 0 | E111: 0
B112: 0 | E112: 0
B113: 0 | E113: 0
B114: 0 | E114: 0
B115: 0 | E115: 0
B116: 0 | E116: 0
B117: 0 | E117: 0
B118: 0 | E118: 0
B119: 0 | E119: 0
B120: 0 | E120: 0
B121: 0 | E121: 0
B122: 0 | E122: 0
B123: 0 | E123: 0
B124: 0 | E124: 0
B125: 0 | E125: 0
B126: 0 | E126: 0
B127: 0 | E127: 0
B128: 0 | E128: 0
B129: 0 | E129: 0
B130: 0 | E130: 0
B131: 0 | E131: 0
B132: 0 | E132: 0
B133: 0 | E133: 0
B134: 0 | E134: =C134*D134 -> 0
B135: 0 | E135: 0
B136: 0 | E136: 0
B137: 0 | E137: 0
B138: 0 | E138: 0
B139: 0 | E139: 0
B140: 0 | E140: 0
B141: 0 | E141: 0
B142: 0 | E142: 0
B143: 0 | E143: 0
B144: 0 | E144: 0
B145: 0 | E145: 0
B146: 0 | E146: 0
B147: 0 | E147: 0
B148: 0 | E148: 0
B149: 0 | E149: 0
B150: 0 | E150: 0
B151: 0 | E151: 0
B152: 0 | E152: 0
B153: =A153 -> 0 | E153: 0
B154: 0 | E154: 0

Sheet PivotTable
A1: التاريخ | B1: (Multiple Items)
A3: الصنف | B3: Sum of الاجمالى | C3: Sum of كميه
A4: 1 | B4: 300 | C4: 2
A5: 2 | B5: 390 | C5: 3
A6: 3 | B6: 390 | C6: 3
A7: 4 | B7: 300 | C7: 2
A8: 5 | B8: 300 | C8: 2
A9: 6 | B9: 350 | C9: 2
A10: 8 | B10: 400 | C10: 2
A11: إجمالى الفاتورة | B11: 2950 | C11: 0
A12: خصم | B12: 70 | C12: 0
A13: 9 | B13: 260 | C13: 2
A14: 10 | B14: 130 | C14: 1
A15: 7 | B15: 200 | C15: 1
A16: الربح | B16: 955 | C16: 0
A17: Grand Total | B17: 6995 | C17: 20

Sheet ملخص مبيعات
L2: إجمالى الفاتورة | M2: =SUMIF(E:E,L2,I:I) -> 14385
L3: خصم | M3: =SUMIF(E:E,L3,I:I) -> 470
A4: رقم الفاتورة | B4: التاريخ | C4: اسم العميل | D4: رقم الموبايل | E4: اسم الصنف | F4: كود | G4: كميه | H4: السعر | I4: الاجمالى | L4: الربح | M4: =SUMIF(E:E,L4,I:I) -> 4490
A5: رقم الفاتورة | B5: التاريخ | C5: اسم العميل | D5: رقم الموبايل | E5: اسم الصنف | F5: كود | G5: كميه | H5: السعر | I5: الاجمالى
A6: 28 | B6: 2020-09-03 | C6: سليم | D6: 6655989899 | E6: 12 | F6: 12 | G6: 1 | H6: 175 | I6: 175
A7: 28 | B7: 2020-09-03 | C7: سليم | D7: 6655989899 | E7: 13 | F7: 13 | G7: 1 | H7: 150 | I7: 150
A8: 28 | B8: 2020-09-03 | C8: سليم | D8: 6655989899 | E8: 0 | G8: 0 | H8: 0 | I8: 0
A9: 28 | B9: 2020-09-03 | C9: سليم | D9: 6655989899 | E9: 0 | G9: 0 | H9: 0 | I9: 0 | L9: =M4-4410 -> 80
A10: 28 | B10: 2020-09-03 | C10: سليم | D10: 6655989899 | E10: 0 | G10: 0 | H10: 0 | I10: 0
A11: 28 | B11: 2020-09-03 | C11: سليم | D11: 6655989899 | E11: خصم | F11: 0 | G11: 0 | H11: 0 | I11: 0
A12: 28 | B12: 2020-09-03 | C12: سليم | D12: 6655989899 | E12: إجمالى الفاتورة | F12: 0 | G12: 0 | H12: 0 | I12: 325
A13: 28 | B13: 2020-09-03 | C13: سليم | D13: 6655989899 | E13: الربح | F13: 0 | G13: 0 | H13: 0 | I13: 150
A14: 27 | B14: 2020-09-03 | C14: فهيم | D14: 01265565565 | E14: 7 | F14: 7 | G14: 1 | H14: 200 | I14: 200
A15: 27 | B15: 2020-09-03 | C15: فهيم | D15: 01265565565 | E15: 8 | F15: 8 | G15: 1 | H15: 200 | I15: 200
A16: 27 | B16: 2020-09-03 | C16: فهيم | D16: 01265565565 | E16: 9 | F16: 9 | G16: 1 | H16: 130 | I16: 130
A17: 27 | B17: 2020-09-03 | C17: فهيم | D17: 01265565565 | E17: 0 | G17: 0 | H17: 0 | I17: 0
A18: 27 | B18: 2020-09-03 | C18: فهيم | D18: 01265565565 | E18: 0 | G18: 0 | H18: 0 | I18: 0
A19: 27 | B19: 2020-09-03 | C19: فهيم | D19: 01265565565 | E19: خصم | F19: 0 | G19: 0 | H19: 0 | I19: 30
A20: 27 | B20: 2020-09-03 | C20: فهيم | D20: 01265565565 | E20: إجمالى الفاتورة | F20: 0 | G20: 0 | H20: 0 | I20: 500
A21: 27 | B21: 2020-09-03 | C21: فهيم | D21: 01265565565 | E21: الربح | F21: 0 | G21: 0 | H21: 0 | I21: 135
A22: 26 | B22: 2020-09-03 | C22: yamen | D22: 01006321458 | E22: 5 | F22: 5 | G22: 1 | H22: 150 | I22: 150
A23: 26 | B23: 2020-09-03 | C23: yamen | D23: 01006321458 | E23: 6 | F23: 6 | G23: 1 | H23: 175 | I23: 175
A24: 26 | B24: 2020-09-03 | C24: yamen | D24: 01006321458 | E24: 7 | F24: 7 | G24: 1 | H24: 200 | I24: 200
A25: 26 | B25: 2020-09-03 | C25: yamen | D25: 01006321458 | E25: 8 | F25: 8 | G25: 1 | H25: 200 | I25: 200
A26: 26 | B26: 2020-09-03 | C26: yamen | D26: 01006321458 | E26: 9 | F26: 9 | G26: 1 | H26: 130 | I26: 130
A27: 26 | B27: 2020-09-03 | C27: yamen | D27: 01006321458 | E27: خصم | F27: 0 | G27: 0 | H27: 0 | I27: 5
A28: 26 | B28: 2020-09-03 | C28: yamen | D28: 01006321458 | E28: إجمالى الفاتورة | F28: 0 | G28: 0 | H28: 0 | I28: 850
A29: 26 | B29: 2020-09-03 | C29: yamen | D29: 01006321458 | E29: الربح | F29: 0 | G29: 0 | H29: 0 | I29: 260
A30: 25 | B30: 2020-09-03 | C30: hady | D30: 01126589241 | E30: 1 | F30: 1 | G30: 1 | H30: 150 | I30: 150
A31: 25 | B31: 2020-09-03 | C31: hady | D31: 01126589241 | E31: 2 | F31: 2 | G31: 1 | H31: 130 | I31: 130
A32: 25 | B32: 2020-09-03 | C32: hady | D32: 01126589241 | E32: 3 | F32: 3 | G32: 1 | H32: 130 | I32: 130
A33: 25 | B33: 2020-09-03 | C33: hady | D33: 01126589241 | E33: 4 | F33: 4 | G33: 1 | H33: 150 | I33: 150
A34: 25 | B34: 2020-09-03 | C34: hady | D34: 01126589241 | E34: 5 | F34: 5 | G34: 1 | H34: 150 | I34: 150
A35: 25 | B35: 2020-09-03 | C35: hady | D35: 01126589241 | E35: خصم | F35: 0 | G35: 0 | H35: 0 | I35: 0
A36: 25 | B36: 2020-09-03 | C36: hady | D36: 01126589241 | E36: إجمالى الفاتورة | F36: 0 | G36: 0 | H36: 0 | I36: 710
A37: 25 | B37: 2020-09-03 | C37: hady | D37: 01126589241 | E37: الربح | F37: 0 | G37: 0 | H37: 0 | I37: 250
A38: 24 | B38: 2020-09-03 | C38: مرتجع | D38: 0 | E38: 4 | F38: 4 | G38: -1 | H38: 150 | I38: -150
A39: 24 | B39: 2020-09-03 | C39: مرتجع | D39: 0 | E39: 0 | G39: 0 | H39: 0 | I39: 0
A40: 24 | B40: 2020-09-03 | C40: مرتجع | D40: 0 | E40: 0 | G40: 0 | H40: 0 | I40: 0
A41: 24 | B41: 2020-09-03 | C41: مرتجع | D41: 0 | E41: 0 | G41: 0 | H41: 0 | I41: 0
A42: 24 | B42: 2020-09-03 | C42: مرتجع | D42: 0 | E42: 0 | G42: 0 | H42: 0 | I42: 0
A43: 24 | B43: 2020-09-03 | C43: مرتجع | D43: 0 | E43: خصم | F43: 0 | G43: 0 | H43: 0 | I43: 0
A44: 24 | B44: 2020-09-03 | C44: مرتجع | D44: 0 | E44: إجمالى الفاتورة | F44: 0 | G44: 0 | H44: 0 | I44: -150
A45: 24 | B45: 2020-09-03 | C45: مرتجع | D45: 0 | E45: الربح | F45: 0 | G45: 0 | H45: 0 | I45: -50
A46: 23 | B46: 2020-09-03 | C46: مرتجع | D46: 0232555454 | E46: 5 | F46: 5 | G46: -1 | H46: 150 | I46: -150
A47: 23 | B47: 2020-09-03 | C47: مرتجع | D47: 0232555454 | E47: 0 | G47: 0 | H47: 0 | I47: 0
A48: 23 | B48: 2020-09-03 | C48: مرتجع | D48: 0232555454 | E48: 0 | G48: 0 | H48: 0 | I48: 0
A49: 23 | B49: 2020-09-03 | C49: مرتجع | D49: 0232555454 | E49: 0 | G49: 0 | H49: 0 | I49: 0
A50: 23 | B50: 2020-09-03 | C50: مرتجع | D50: 0232555454 | E50: 0 | G50: 0 | H50: 0 | I50: 0
A51: 23 | B51: 2020-09-03 | C51: مرتجع | D51: 0232555454 | E51: خصم | F51: 0 | G51: 0 | H51: 0 | I51: 0
A52: 23 | B52: 2020-09-03 | C52: مرتجع | D52: 0232555454 | E52: إجمالى الفاتورة | F52: 0 | G52: 0 | H52: 0 | I52: -150
A53: 23 | B53: 2020-09-03 | C53: مرتجع | D53: 0232555454 | E53: الربح | F53: 0 | G53: 0 | H53: 0 | I53: -50
A54: 22 | B54: 2020-09-02 | C54: مرتجع للتجربة | D54: 656488787 | E54: 2 | F54: 2 | G54: -1 | H54: 130 | I54: -130
A55: 22 | B55: 2020-09-02 | C55: مرتجع للتجربة | D55: 656488787 | E55: 0 | G55: 0 | H55: 0 | I55: 0
A56: 22 | B56: 2020-09-02 | C56: مرتجع للتجربة | D56: 656488787 | E56: 0 | G56: 0 | H56: 0 | I56: 0
A57: 22 | B57: 2020-09-02 | C57: مرتجع للتجربة | D57: 656488787 | E57: 0 | G57: 0 | H57: 0 | I57: 0
A58: 22 | B58: 2020-09-02 | C58: مرتجع للتجربة | D58: 656488787 | E58: 0 | G58: 0 | H58: 0 | I58: 0
A59: 22 | B59: 2020-09-02 | C59: مرتجع للتجربة | D59: 656488787 | E59: خصم | F59: 0 | G59: 0 | H59: 0 | I59: 0
A60: 22 | B60: 2020-09-02 | C60: مرتجع للتجربة | D60: 656488787 | E60: إجمالى الفاتورة | F60: 0 | G60: 0 | H60: 0 | I60: -130
A61: 22 | B61: 2020-09-02 | C61: مرتجع للتجربة | D61: 656488787 | E61: الربح | F61: 0 | G61: 0 | H61: 0 | I61: -55
A62: 21 | B62: 2020-09-02 | C62: زهران | D62: 566548787 | E62: 3 | F62: 3 | G62: 1 | H62: 130 | I62: 130
A63: 21 | B63: 2020-09-02 | C63: زهران | D63: 566548787 | E63: 4 | F63: 4 | G63: 2 | H63: 150 | I63: 300
A64: 21 | B64: 2020-09-02 | C64: زهران | D64: 566548787 | E64: 5 | F64: 5 | G64: 1 | H64: 150 | I64: 150
A65: 21 | B65: 2020-09-02 | C65: زهران | D65: 566548787 | E65: 6 | F65: 6 | G65: 1 | H65: 175 | I65: 175
A66: 21 | B66: 2020-09-02 | C66: زهران | D66: 566548787 | E66: 7 | F66: 7 | G66: 1 | H66: 200 | I66: 200
A67: 21 | B67: 2020-09-02 | C67: زهران | D67: 566548787 | E67: خصم | F67: 0 | G67: 0 | H67: 0 | I67: 5
A68: 21 | B68: 2020-09-02 | C68: زهران | D68: 566548787 | E68: إجمالى الفاتورة | F68: 0 | G68: 0 | H68: 0 | I68: 950
A69: 21 | B69: 2020-09-02 | C69: زهران | D69: 566548787 | E69: الربح | F69: 0 | G69: 0 | H69: 0 | I69: 290
A70: 20 | B70: 2020-09-02 | C70: مممكمكمحخحخ | D70: 5554446 | E70: 2 | F70: 2 | G70: 2 | H70: 130 | I70: 260
A71: 20 | B71: 2020-09-02 | C71: مممكمكمحخحخ | D71: 5554446 | E71: 0 | G71: 0 | H71: 0 | I71: 0
A72: 20 | B72: 2020-09-02 | C72: مممكمكمحخحخ | D72: 5554446 | E72: 0 | G72: 0 | H72: 0 | I72: 0
A73: 20 | B73: 2020-09-02 | C73: مممكمكمحخحخ | D73: 5554446 | E73: 0 | G73: 0 | H73: 0 | I73: 0
A74: 20 | B74: 2020-09-02 | C74: مممكمكمحخحخ | D74: 5554446 | E74: 0 | G74: 0 | H74: 0 | I74: 0
A75: 20 | B75: 2020-09-02 | C75: مممكمكمحخحخ | D75: 5554446 | E75: خصم | F75: 0 | G75: 0 | H75: 0 | I75: 0
A76: 20 | B76: 2020-09-02 | C76: مممكمكمحخحخ | D76: 5554446 | E76: إجمالى الفاتورة | F76: 0 | G76: 0 | H76: 0 | I76: 260
A77: 20 | B77: 2020-09-02 | C77: مممكمكمحخحخ | D77: 5554446 | E77: الربح | F77: 0 | G77: 0 | H77: 0 | I77: 110
A78: 19 | B78: 2020-09-02 | C78: مرتجع | D78: 33336665444 | E78: 3 | F78: 3 | G78: -1 | H78: 130 | I78: -130
A79: 19 | B79: 2020-09-02 | C79: مرتجع | D79: 33336665444 | E79: 0 | G79: 0 | H79: 0 | I79: 0
A80: 19 | B80: 2020-09-02 | C80: مرتجع | D80: 33336665444 | E80: 0 | G80: 0 | H80: 0 | I80: 0
A81: 19 | B81: 2020-09-02 | C81: مرتجع | D81: 33336665444 | E81: 0 | G81: 0 | H81: 0 | I81: 0
A82: 19 | B82: 2020-09-02 | C82: مرتجع | D82: 33336665444 | E82: 0 | G82: 0 | H82: 0 | I82: 0
A83: 19 | B83: 2020-09-02 | C83: مرتجع | D83: 33336665444 | E83: خصم | F83: 0 | G83: 0 | H83: 0 | I83: 0
A84: 19 | B84: 2020-09-02 | C84: مرتجع | D84: 33336665444 | E84: إجمالى الفاتورة | F84: 0 | G84: 0 | H84: 0 | I84: -130
A85: 19 | B85: 2020-09-02 | C85: مرتجع | D85: 33336665444 | E85: الربح | F85: 0 | G85: 0 | H85: 0 | I85: -45
A86: 18 | B86: 2020-09-02 | C86: مرتجع | D86: 01232322232 | E86: 2 | F86: 2 | G86: -1 | H86: 130 | I86: -130
A87: 18 | B87: 2020-09-02 | C87: مرتجع | D87: 01232322232 | E87: 0 | G87: 0 | H87: 0 | I87: 0
A88: 18 | B88: 2020-09-02 | C88: مرتجع | D88: 01232322232 | E88: 0 | G88: 0 | H88: 0 | I88: 0
A89: 18 | B89: 2020-09-02 | C89: مرتجع | D89: 01232322232 | E89: 0 | G89: 0 | H89: 0 | I89: 0
A90: 18 | B90: 2020-09-02 | C90: مرتجع | D90: 01232322232 | E90: 0 | G90: 0 | H90: 0 | I90: 0
A91: 18 | B91: 2020-09-02 | C91: مرتجع | D91: 01232322232 | E91: خصم | F91: 0 | G91: 0 | H91: 0 | I91: 0
A92: 18 | B92: 2020-09-02 | C92: مرتجع | D92: 01232322232 | E92: إجمالى الفاتورة | F92: 0 | G92: 0 | H92: 0 | I92: -130
A93: 18 | B93: 2020-09-02 | C93: مرتجع | D93: 01232322232 | E93: الربح | F93: 0 | G93: 0 | H93: 0 | I93: -55
A94: 17 | B94: 2020-09-02 | C94: ghfghfghkj | D94: 0 | E94: 2 | F94: 2 | G94: 2 | H94: 130 | I94: 260
A95: 17 | B95: 2020-09-02 | C95: ghfghfghkj | D95: 0 | E95: 0 | G95: 0 | H95: 0 | I95: 0
A96: 17 | B96: 2020-09-02 | C96: ghfghfghkj | D96: 0 | E96: 0 | G96: 0 | H96: 0 | I96: 0
A97: 17 | B97: 2020-09-02 | C97: ghfghfghkj | D97: 0 | E97: 0 | G97: 0 | H97: 0 | I97: 0
A98: 17 | B98: 2020-09-02 | C98: ghfghfghkj | D98: 0 | E98: 0 | G98: 0 | H98: 0 | I98: 0
A99: 17 | B99: 2020-09-02 | C99: ghfghfghkj | D99: 0 | E99: خصم | F99: 0 | G99: 0 | H99: 0 | I99: 10
A100: 17 | B100: 2020-09-02 | C100: ghfghfghkj | D100: 0 | E100: إجمالى الفاتورة | F100: 0 | G100: 0 | H100: 0 | I100: 250
A101: 17 | B101: 2020-09-02 | C101: ghfghfghkj | D101: 0 | E101: الربح | F101: 0 | G101: 0 | H101: 0 | I101: 100
A102: 16 | B102: 2020-09-02 | C102: asfsafas | D102: 0 | E102: 2 | F102: 2 | G102: 1 | H102: 130 | I102: 130
A103: 16 | B103: 2020-09-02 | C103: asfsafas | D103: 0 | E103: 3 | F103: 3 | G103: 1 | H103: 130 | I103: 130
A104: 16 | B104: 2020-09-02 | C104: asfsafas | D104: 0 | E104: 1 | F104: 1 | G104: 1 | H104: 150 | I104: 150
A105: 16 | B105: 2020-09-02 | C105: asfsafas | D105: 0 | E105: 4 | F105: 4 | G105: 1 | H105: 150 | I105: 150
A106: 16 | B106: 2020-09-02 | C106: asfsafas | D106: 0 | E106: 5 | F106: 5 | G106: 1 | H106: 150 | I106: 150
A107: 16 | B107: 2020-09-02 | C107: asfsafas | D107: 0 | E107: خصم | F107: 0 | G107: 0 | H107: 0 | I107: 10
A108: 16 | B108: 2020-09-02 | C108: asfsafas | D108: 0 | E108: إجمالى الفاتورة | F108: 0 | G108: 0 | H108: 0 | I108: 700
A109: 16 | B109: 2020-09-02 | C109: asfsafas | D109: 0 | E109: الربح | F109: 0 | G109: 0 | H109: 0 | I109: 240
A110: 15 | B110: 2020-08-30 | C110: 0 | D110: 0 | E110: 6 | F110: 6 | G110: 1 | H110: 175 | I110: 175
A111: 15 | B111: 2020-08-30 | C111: 0 | D111: 0 | E111: 0 | G111: 0 | H111: 0 | I111: 0
A112: 15 | B112: 2020-08-30 | C112: 0 | D112: 0 | E112: 0 | G112: 0 | H112: 0 | I112: 0
A113: 15 | B113: 2020-08-30 | C113: 0 | D113: 0 | E113: 0 | G113: 0 | H113: 0 | I113: 0
A114: 15 | B114: 2020-08-30 | C114: 0 | D114: 0 | E114: 0 | G114: 0 | H114: 0 | I114: 0
A115: 15 | B115: 2020-08-30 | C115: 0 | D115: 0 | E115: خصم | F115: 0 | G115: 0 | H115: 0 | I115: 0
A116: 15 | B116: 2020-08-30 | C116: 0 | D116: 0 | E116: إجمالى الفاتورة | F116: 0 | G116: 0 | H116: 0 | I116: 175
A117: 15 | B117: 2020-08-30 | C117: 0 | D117: 0 | E117: الربح | F117: 0 | G117: 0 | H117: 0 | I117: 50
A118: 14 | B118: 2020-08-30 | C118: 0 | D118: 0 | E118: 6 | F118: 6 | G118: 1 | H118: 175 | I118: 175
A119: 14 | B119: 2020-08-30 | C119: 0 | D119: 0 | E119: 0 | G119: 0 | H119: 0 | I119: 0
A120: 14 | B120: 2020-08-30 | C120: 0 | D120: 0 | E120: 0 | G120: 0 | H120: 0 | I120: 0
A121: 14 | B121: 2020-08-30 | C121: 0 | D121: 0 | E121: 0 | G121: 0 | H121: 0 | I121: 0
A122: 14 | B122: 2020-08-30 | C122: 0 | D122: 0 | E122: 0 | G122: 0 | H122: 0 | I122: 0
A123: 14 | B123: 2020-08-30 | C123: 0 | D123: 0 | E123: خصم | F123: 0 | G123: 0 | H123: 0 | I123: 150
A124: 14 | B124: 2020-08-30 | C124: 0 | D124: 0 | E124: إجمالى الفاتورة | F124: 0 | G124: 0 | H124: 0 | I124: 25
A125: 14 | B125: 2020-08-30 | C125: 0 | D125: 0 | E125: الربح | F125: 0 | G125: 0 | H125: 0 | I125: -100
A126: 13 | B126: 2020-08-30 | C126: وسام | D126: 232356565 | E126: 2 | F126: 2 | G126: 1 | H126: 130 | I126: 130
A127: 13 | B127: 2020-08-30 | C127: وسام | D127: 232356565 | E127: 3 | F127: 3 | G127: 1 | H127: 130 | I127: 130
A128: 13 | B128: 2020-08-30 | C128: وسام | D128: 232356565 | E128: 5 | F128: 5 | G128: 1 | H128: 150 | I128: 150
A129: 13 | B129: 2020-08-30 | C129: وسام | D129: 232356565 | E129: 6 | F129: 6 | G129: 1 | H129: 175 | I129: 175
A130: 13 | B130: 2020-08-30 | C130: وسام | D130: 232356565 | E130: 4 | F130: 4 | G130: 1 | H130: 150 | I130: 150
A131: 13 | B131: 2020-08-30 | C131: وسام | D131: 232356565 | E131: خصم | F131: 0 | G131: 0 | H131: 0 | I131: 35
A132: 13 | B132: 2020-08-30 | C132: وسام | D132: 232356565 | E132: إجمالى الفاتورة | F132: 0 | G132: 0 | H132: 0 | I132: 700
A133: 13 | B133: 2020-08-30 | C133: وسام | D133: 232356565 | E133: الربح | F133: 0 | G133: 0 | H133: 0 | I133: 215
A134: 12 | B134: 2020-08-30 | C134: سالم | D134: 023651488 | E134: 4 | F134: 4 | G134: 1 | H134: 150 | I134: 150
A135: 12 | B135: 2020-08-30 | C135: سالم | D135: 023651488 | E135: 5 | F135: 5 | G135: 1 | H135: 150 | I135: 150
A136: 12 | B136: 2020-08-30 | C136: سالم | D136: 023651488 | E136: 6 | F136: 6 | G136: 1 | H136: 175 | I136: 175
A137: 12 | B137: 2020-08-30 | C137: سالم | D137: 023651488 | E137: 7 | F137: 7 | G137: 1 | H137: 200 | I137: 200
A138: 12 | B138: 2020-08-30 | C138: سالم | D138: 023651488 | E138: 8 | F138: 8 | G138: 1 | H138: 200 | I138: 200
A139: 12 | B139: 2020-08-30 | C139: سالم | D139: 023651488 | E139: خصم | F139: 0 | G139: 0 | H139: 0 | I139: 25
A140: 12 | B140: 2020-08-30 | C140: سالم | D140: 023651488 | E140: إجمالى الفاتورة | F140: 0 | G140: 0 | H140: 0 | I140: 850
A141: 12 | B141: 2020-08-30 | C141: سالم | D141: 023651488 | E141: الربح | F141: 0 | G141: 0 | H141: 0 | I141: 245
A142: 11 | B142: 2020-08-30 | C142: زين على | D142: 0132326554 | E142: 6 | F142: 6 | G142: 1 | H142: 175 | I142: 175
A143: 11 | B143: 2020-08-30 | C143: زين على | D143: 0132326554 | E143: 7 | F143: 7 | G143: 1 | H143: 200 | I143: 200
A144: 11 | B144: 2020-08-30 | C144: زين على | D144: 0132326554 | E144: 8 | F144: 8 | G144: 1 | H144: 200 | I144: 200
A145: 11 | B145: 2020-08-30 | C145: زين على | D145: 0132326554 | E145: 9 | F145: 9 | G145: 1 | H145: 130 | I145: 130
A146: 11 | B146: 2020-08-30 | C146: زين على | D146: 0132326554 | E146: 10 | F146: 10 | G146: 1 | H146: 130 | I146: 130
A147: 11 | B147: 2020-08-30 | C147: زين على | D147: 0132326554 | E147: خصم | F147: 0 | G147: 0 | H147: 0 | I147: 0
A148: 11 | B148: 2020-08-30 | C148: زين على | D148: 0132326554 | E148: إجمالى الفاتورة | F148: 0 | G148: 0 | H148: 0 | I148: 835
A149: 11 | B149: 2020-08-30 | C149: زين على | D149: 0132326554 | E149: الربح | F149: 0 | G149: 0 | H149: 0 | I149: 260
A150: 10 | B150: 2020-08-30 | C150: حمزة | D150: 0482156323 | E150: 2 | F150: 2 | G150: 1 | H150: 130 | I150: 130
A151: 10 | B151: 2020-08-30 | C151: حمزة | D151: 0482156323 | E151: 3 | F151: 3 | G151: 1 | H151: 130 | I151: 130
A152: 10 | B152: 2020-08-30 | C152: حمزة | D152: 0482156323 | E152: 4 | F152: 4 | G152: 1 | H152: 150 | I152: 150
A153: 10 | B153: 2020-08-30 | C153: حمزة | D153: 0482156323 | E153: 5 | F153: 5 | G153: 1 | H153: 150 | I153: 150
A154: 10 | B154: 2020-08-30 | C154: حمزة | D154: 0482156323 | E154: 6 | F154: 6 | G154: 1 | H154: 175 | I154: 175
A155: 10 | B155: 2020-08-30 | C155: حمزة | D155: 0482156323 | E155: خصم | F155: 0 | G155: 0 | H155: 0 | I155: 35
A156: 10 | B156: 2020-08-30 | C156: حمزة | D156: 0482156323 | E156: إجمالى الفاتورة | F156: 0 | G156: 0 | H156: 0 | I156: 700
A157: 10 | B157: 2020-08-30 | C157: حمزة | D157: 0482156323 | E157: الربح | F157: 0 | G157: 0 | H157: 0 | I157: 215
A158: 9 | B158: 2020-08-30 | C158: سيد متولى | D158: 35656555 | E158: 16 | F158: 16 | G158: 1 | H158: 170 | I158: 170
A159: 9 | B159: 2020-08-30 | C159: سيد متولى | D159: 35656555 | E159: 17 | F159: 17 | G159: 1 | H159: 210 | I159: 210
A160: 9 | B160: 2020-08-30 | C160: سيد متولى | D160: 35656555 | E160: 18 | F160: 18 | G160: 1 | H160: 220 | I160: 220
A161: 9 | B161: 2020-08-30 | C161: سيد متولى | D161: 35656555 | E161: 19 | F161: 19 | G161: 1 | H161: 230 | I161: 230
A162: 9 | B162: 2020-08-30 | C162: سيد متولى | D162: 35656555 | E162: 15 | F162: 15 | G162: 1 | H162: 220 | I162: 220
A163: 9 | B163: 2020-08-30 | C163: سيد متولى | D163: 35656555 | E163: خصم | F163: 0 | G163: 0 | H163: 0 | I163: 50
A164: 9 | B164: 2020-08-30 | C164: سيد متولى | D164: 35656555 | E164: إجمالى الفاتورة | F164: 0 | G164: 0 | H164: 0 | I164: 1000
A165: 9 | B165: 2020-08-30 | C165: سيد متولى | D165: 35656555 | E165: الربح | F165: 0 | G165: 0 | H165: 0 | I165: 310
A166: 8 | B166: 2020-08-30 | C166: حلمى | D166: 023154454 | E166: 16 | F166: 16 | G166: 1 | H166: 170 | I166: 170
A167: 8 | B167: 2020-08-30 | C167: حلمى | D167: 023154454 | E167: 17 | F167: 17 | G167: 1 | H167: 210 | I167: 210
A168: 8 | B168: 2020-08-30 | C168: حلمى | D168: 023154454 | E168: 18 | F168: 18 | G168: 1 | H168: 220 | I168: 220
A169: 8 | B169: 2020-08-30 | C169: حلمى | D169: 023154454 | E169: 19 | F169: 19 | G169: 0 | H169: 230 | I169: 230
A170: 8 | B170: 2020-08-30 | C170: حلمى | D170: 023154454 | E170: 0 | G170: 0 | H170: 0 | I170: 0
A171: 8 | B171: 2020-08-30 | C171: حلمى | D171: 023154454 | E171: خصم | F171: 0 | G171: 0 | H171: 0 | I171: 0
A172: 8 | B172: 2020-08-30 | C172: حلمى | D172: 023154454 | E172: إجمالى الفاتورة | F172: 0 | G172: 0 | H172: 0 | I172: 830
A173: 8 | B173: 2020-08-30 | C173: حلمى | D173: 023154454 | E173: الربح | F173: 0 | G173: 0 | H173: 0 | I173: 200
A174: 7 | B174: 2020-08-30 | C174: شوقى بكر | D174: 02145563211 | E174: 11 | F174: 11 | G174: 1 | H174: 200 | I174: 200
A175: 7 | B175: 2020-08-30 | C175: شوقى بكر | D175: 02145563211 | E175: 12 | F175: 12 | G175: 1 | H175: 175 | I175: 175
A176: 7 | B176: 2020-08-30 | C176: شوقى بكر | D176: 02145563211 | E176: 13 | F176: 13 | G176: 1 | H176: 150 | I176: 150
A177: 7 | B177: 2020-08-30 | C177: شوقى بكر | D177: 02145563211 | E177: 14 | F177: 14 | G177: 1 | H177: 220 | I177: 220
A178: 7 | B178: 2020-08-30 | C178: شوقى بكر | D178: 02145563211 | E178: 15 | F178: 15 | G178: 1 | H178: 220 | I178: 220
A179: 7 | B179: 2020-08-30 | C179: شوقى بكر | D179: 02145563211 | E179: خصم | F179: 0 | G179: 0 | H179: 0 | I179: 0
A180: 7 | B180: 2020-08-30 | C180: شوقى بكر | D180: 02145563211 | E180: إجمالى الفاتورة | F180: 0 | G180: 0 | H180: 0 | I180: 965
A181: 7 | B181: 2020-08-30 | C181: شوقى بكر | D181: 02145563211 | E181: الربح | F181: 0 | G181: 0 | H181: 0 | I181: 395
A182: 6 | B182: 2020-08-30 | C182: صالح | D182: 012365422233 | E182: 7 | F182: 7 | G182: 1 | H182: 200 | I182: 200
A183: 6 | B183: 2020-08-30 | C183: صالح | D183: 012365422233 | E183: 6 | F183: 6 | G183: 1 | H183: 175 | I183: 175
A184: 6 | B184: 2020-08-30 | C184: صالح | D184: 012365422233 | E184: 8 | F184: 8 | G184: 1 | H184: 200 | I184: 200
A185: 6 | B185: 2020-08-30 | C185: صالح | D185: 012365422233 | E185: 9 | F185: 9 | G185: 1 | H185: 130 | I185: 130
A186: 6 | B186: 2020-08-30 | C186: صالح | D186: 012365422233 | E186: 10 | F186: 10 | G186: 1 | H186: 130 | I186: 130
A187: 6 | B187: 2020-08-30 | C187: صالح | D187: 012365422233 | E187: خصم | F187: 0 | G187: 0 | H187: 0 | I187: 35
A188: 6 | B188: 2020-08-30 | C188: صالح | D188: 012365422233 | E188: إجمالى الفاتورة | F188: 0 | G188: 0 | H188: 0 | I188: 800
A189: 6 | B189: 2020-08-30 | C189: صالح | D189: 012365422233 | E189: الربح | F189: 0 | G189: 0 | H189: 0 | I189: 225
A190: 5 | B190: 2020-08-30 | C190: إبراهيم | D190: 01067257688 | E190: 1 | F190: 1 | G190: 1 | H190: 150 | I190: 150
A191: 5 | B191: 2020-08-30 | C191: إبراهيم | D191: 01067257688 | E191: 2 | F191: 2 | G191: 1 | H191: 130 | I191: 130
A192: 5 | B192: 2020-08-30 | C192: إبراهيم | D192: 01067257688 | E192: 3 | F192: 3 | G192: 1 | H192: 130 | I192: 130
A193: 5 | B193: 2020-08-30 | C193: إبراهيم | D193: 01067257688 | E193: 4 | F193: 4 | G193: 1 | H193: 150 | I193: 150
A194: 5 | B194: 2020-08-30 | C194: إبراهيم | D194: 01067257688 | E194: 5 | F194: 5 | G194: 1 | H194: 150 | I194: 150
A195: 5 | B195: 2020-08-30 | C195: إبراهيم | D195: 01067257688 | E195: خصم | F195: 0 | G195: 0 | H195: 0 | I195: 10
A196: 5 | B196: 2020-08-30 | C196: إبراهيم | D196: 01067257688 | E196: إجمالى الفاتورة | F196: 0 | G196: 0 | H196: 0 | I196: 700
A197: 5 | B197: 2020-08-30 | C197: إبراهيم | D197: 01067257688 | E197: الربح | F197: 0 | G197: 0 | H197: 0 | I197: 240
A198: 4 | B198: 2020-08-24 | C198: سيد | D198: 66355555 | E198: 2 | F198: 2 | G198: 1 | H198: 130 | I198: 130
A199: 4 | B199: 2020-08-24 | C199: سيد | D199: 66355555 | E199: 3 | F199: 3 | G199: 1 | H199: 130 | I199: 130
A200: 4 | B200: 2020-08-24 | C200: سيد | D200: 66355555 | E200: 6 | F200: 6 | G200: 1 | H200: 175 | I200: 175
A201: 4 | B201: 2020-08-24 | C201: سيد | D201: 66355555 | E201: 8 | F201: 8 | G201: 1 | H201: 200 | I201: 200
... 29 more rows

Sheet بحث
C3: رقم الفاتورة | D3: التاريخ | E3: اسم العميل | F3: رقم الموبايل | G3: اسم الصنف | H3: كود | I3: كميه | J3: السعر | K3: الاجمالى
D4: 2020-08-26 | G4: الربح
C11: رقم الفاتورة | D11: التاريخ | E11: اسم العميل | F11: رقم الموبايل | G11: اسم الصنف | H11: كود | I11: كميه | J11: السعر | K11: الاجمالى
C12: 2 | D12: 2020-08-26 | E12: على | F12: 6656556 | G12: الربح | H12: 0 | I12: 0 | J12: 0 | K12: 240
